{"text_format":"3","workbook":"xlsx","n_sheets":4,"sheets":["ملخص موازنة السنة حتى الآن","ملخص المصاريف الشهرية","المصاريف المفصلة","الأعمال الخيرية والجهات الراعية"],"not_rendered":{"defined_names":15},"read":"whole","date_system":"1900"}

{"sheet":"ملخص موازنة السنة حتى الآن","index":0,"n_rows":17,"n_cols":7,"rows_kept":17,"merged":[[1,1,1,4]]}
[null,"ملخص المصاريف الشهرية"]
[null,"الفعلي مقابل الميزانية من بداية السنة حتى تاريخه",{"$nulls":3},"السنة",{"$f":"YEAR(TODAY())","v":2019}]
[]
[null,"رمز G/L","عنوان الحساب","الفعلية","الميزانية","المتبقي بالريال السعودي","المتبقي بالنسبة المئوية"]
[null,1000,"الدعاية",{"$f":"SUMIF(ملخص_المصاريف_الشهرية[رمز G/L],جدول_السنة_حتى_الآن[[#This Row],[رمز G/L]],ملخص_المصاريف_الشهرية[الإجمالي])","v":{"v":0,"d":"ر.س.‏ 0.00"}},{"v":100000,"d":"ر.س.‏ 100,000.00"},{"$f":"IF(جدول_السنة_حتى_الآن[[#This Row],[الميزانية]]=\"\",\"\",جدول_السنة_حتى_الآن[[#This Row],[الميزانية]]-جدول_السنة_حتى_الآن[[#This Row],[الفعلية]])","v":{"v":100000,"d":"ر.س.‏ 100,000.00"}},{"$f":"IFERROR(جدول_السنة_حتى_الآن[[#This Row],[المتبقي بالريال السعودي]]/جدول_السنة_حتى_الآن[[#This Row],[الميزانية]],\"\")","v":{"v":1,"d":"100.00%"}}]
[null,2000,"معدات مكتبية",{"$f":"SUMIF(ملخص_المصاريف_الشهرية[رمز G/L],جدول_السنة_حتى_الآن[[#This Row],[رمز G/L]],ملخص_المصاريف_الشهرية[الإجمالي])","v":{"v":0,"d":"ر.س.‏ 0.00"}},{"v":100000,"d":"ر.س.‏ 100,000.00"},{"$f":"IF(جدول_السنة_حتى_الآن[[#This Row],[الميزانية]]=\"\",\"\",جدول_السنة_حتى_الآن[[#This Row],[الميزانية]]-جدول_السنة_حتى_الآن[[#This Row],[الفعلية]])","v":{"v":100000,"d":"ر.س.‏ 100,000.00"}},{"$f":"IFERROR(جدول_السنة_حتى_الآن[[#This Row],[المتبقي بالريال السعودي]]/جدول_السنة_حتى_الآن[[#This Row],[الميزانية]],\"\")","v":{"v":1,"d":"100.00%"}}]
[null,3000,"الطابعات",{"$f":"SUMIF(ملخص_المصاريف_الشهرية[رمز G/L],جدول_السنة_حتى_الآن[[#This Row],[رمز G/L]],ملخص_المصاريف_الشهرية[الإجمالي])","v":{"v":0,"d":"ر.س.‏ 0.00"}},{"v":100000,"d":"ر.س.‏ 100,000.00"},{"$f":"IF(جدول_السنة_حتى_الآن[[#This Row],[الميزانية]]=\"\",\"\",جدول_السنة_حتى_الآن[[#This Row],[الميزانية]]-جدول_السنة_حتى_الآن[[#This Row],[الفعلية]])","v":{"v":100000,"d":"ر.س.‏ 100,000.00"}},{"$f":"IFERROR(جدول_السنة_حتى_الآن[[#This Row],[المتبقي بالريال السعودي]]/جدول_السنة_حتى_الآن[[#This Row],[الميزانية]],\"\")","v":{"v":1,"d":"100.00%"}}]
[null,4000,"تكاليف الخادم",{"$f":"SUMIF(ملخص_المصاريف_الشهرية[رمز G/L],جدول_السنة_حتى_الآن[[#This Row],[رمز G/L]],ملخص_المصاريف_الشهرية[الإجمالي])","v":{"v":0,"d":"ر.س.‏ 0.00"}},{"v":100000,"d":"ر.س.‏ 100,000.00"},{"$f":"IF(جدول_السنة_حتى_الآن[[#This Row],[الميزانية]]=\"\",\"\",جدول_السنة_حتى_الآن[[#This Row],[الميزانية]]-جدول_السنة_حتى_الآن[[#This Row],[الفعلية]])","v":{"v":100000,"d":"ر.س.‏ 100,000.00"}},{"$f":"IFERROR(جدول_السنة_حتى_الآن[[#This Row],[المتبقي بالريال السعودي]]/جدول_السنة_حتى_الآن[[#This Row],[الميزانية]],\"\")","v":{"v":1,"d":"100.00%"}}]
[null,5000,"المستلزمات",{"$f":"SUMIF(ملخص_المصاريف_الشهرية[رمز G/L],جدول_السنة_حتى_الآن[[#This Row],[رمز G/L]],ملخص_المصاريف_الشهرية[الإجمالي])","v":{"v":0,"d":"ر.س.‏ 0.00"}},{"v":50000,"d":"ر.س.‏ 50,000.00"},{"$f":"IF(جدول_السنة_حتى_الآن[[#This Row],[الميزانية]]=\"\",\"\",جدول_السنة_حتى_الآن[[#This Row],[الميزانية]]-جدول_السنة_حتى_الآن[[#This Row],[الفعلية]])","v":{"v":50000,"d":"ر.س.‏ 50,000.00"}},{"$f":"IFERROR(جدول_السنة_حتى_الآن[[#This Row],[المتبقي بالريال السعودي]]/جدول_السنة_حتى_الآن[[#This Row],[الميزانية]],\"\")","v":{"v":1,"d":"100.00%"}}]
[null,6000,"مصاريف العميل",{"$f":"SUMIF(ملخص_المصاريف_الشهرية[رمز G/L],جدول_السنة_حتى_الآن[[#This Row],[رمز G/L]],ملخص_المصاريف_الشهرية[الإجمالي])","v":{"v":0,"d":"ر.س.‏ 0.00"}},{"v":25000,"d":"ر.س.‏ 25,000.00"},{"$f":"IF(جدول_السنة_حتى_الآن[[#This Row],[الميزانية]]=\"\",\"\",جدول_السنة_حتى_الآن[[#This Row],[الميزانية]]-جدول_السنة_حتى_الآن[[#This Row],[الفعلية]])","v":{"v":25000,"d":"ر.س.‏ 25,000.00"}},{"$f":"IFERROR(جدول_السنة_حتى_الآن[[#This Row],[المتبقي بالريال السعودي]]/جدول_السنة_حتى_الآن[[#This Row],[الميزانية]],\"\")","v":{"v":1,"d":"100.00%"}}]
[null,7000,"أجهزة الكمبيوتر",{"$f":"SUMIF(ملخص_المصاريف_الشهرية[رمز G/L],جدول_السنة_حتى_الآن[[#This Row],[رمز G/L]],ملخص_المصاريف_الشهرية[الإجمالي])","v":{"v":0,"d":"ر.س.‏ 0.00"}},{"v":75000,"d":"ر.س.‏ 75,000.00"},{"$f":"IF(جدول_السنة_حتى_الآن[[#This Row],[الميزانية]]=\"\",\"\",جدول_السنة_حتى_الآن[[#This Row],[الميزانية]]-جدول_السنة_حتى_الآن[[#This Row],[الفعلية]])","v":{"v":75000,"d":"ر.س.‏ 75,000.00"}},{"$f":"IFERROR(جدول_السنة_حتى_الآن[[#This Row],[المتبقي بالريال السعودي]]/جدول_السنة_حتى_الآن[[#This Row],[الميزانية]],\"\")","v":{"v":1,"d":"100.00%"}}]
[null,8000,"الخطة الطبية",{"$f":"SUMIF(ملخص_المصاريف_الشهرية[رمز G/L],جدول_السنة_حتى_الآن[[#This Row],[رمز G/L]],ملخص_المصاريف_الشهرية[الإجمالي])","v":{"v":0,"d":"ر.س.‏ 0.00"}},{"v":65000,"d":"ر.س.‏ 65,000.00"},{"$f":"IF(جدول_السنة_حتى_الآن[[#This Row],[الميزانية]]=\"\",\"\",جدول_السنة_حتى_الآن[[#This Row],[الميزانية]]-جدول_السنة_حتى_الآن[[#This Row],[الفعلية]])","v":{"v":65000,"d":"ر.س.‏ 65,000.00"}},{"$f":"IFERROR(جدول_السنة_حتى_الآن[[#This Row],[المتبقي بالريال السعودي]]/جدول_السنة_حتى_الآن[[#This Row],[الميزانية]],\"\")","v":{"v":1,"d":"100.00%"}}]
[null,9000,"تكاليف الإنشاء",{"$f":"SUMIF(ملخص_المصاريف_الشهرية[رمز G/L],جدول_السنة_حتى_الآن[[#This Row],[رمز G/L]],ملخص_المصاريف_الشهرية[الإجمالي])","v":{"v":0,"d":"ر.س.‏ 0.00"}},{"v":125000,"d":"ر.س.‏ 125,000.00"},{"$f":"IF(جدول_السنة_حتى_الآن[[#This Row],[الميزانية]]=\"\",\"\",جدول_السنة_حتى_الآن[[#This Row],[الميزانية]]-جدول_السنة_حتى_الآن[[#This Row],[الفعلية]])","v":{"v":125000,"d":"ر.س.‏ 125,000.00"}},{"$f":"IFERROR(جدول_السنة_حتى_الآن[[#This Row],[المتبقي بالريال السعودي]]/جدول_السنة_حتى_الآن[[#This Row],[الميزانية]],\"\")","v":{"v":1,"d":"100.00%"}}]
[null,10000,"التسويق",{"$f":"SUMIF(ملخص_المصاريف_الشهرية[رمز G/L],جدول_السنة_حتى_الآن[[#This Row],[رمز G/L]],ملخص_المصاريف_الشهرية[الإجمالي])","v":{"v":0,"d":"ر.س.‏ 0.00"}},{"v":100000,"d":"ر.س.‏ 100,000.00"},{"$f":"IF(جدول_السنة_حتى_الآن[[#This Row],[الميزانية]]=\"\",\"\",جدول_السنة_حتى_الآن[[#This Row],[الميزانية]]-جدول_السنة_حتى_الآن[[#This Row],[الفعلية]])","v":{"v":100000,"d":"ر.س.‏ 100,000.00"}},{"$f":"IFERROR(جدول_السنة_حتى_الآن[[#This Row],[المتبقي بالريال السعودي]]/جدول_السنة_حتى_الآن[[#This Row],[الميزانية]],\"\")","v":{"v":1,"d":"100.00%"}}]
[null,11000,"أعمال خيرية",{"$f":"SUMIF(ملخص_المصاريف_الشهرية[رمز G/L],جدول_السنة_حتى_الآن[[#This Row],[رمز G/L]],ملخص_المصاريف_الشهرية[الإجمالي])","v":{"v":0,"d":"ر.س.‏ 0.00"}},{"v":250000,"d":"ر.س.‏ 250,000.00"},{"$f":"IF(جدول_السنة_حتى_الآن[[#This Row],[الميزانية]]=\"\",\"\",جدول_السنة_حتى_الآن[[#This Row],[الميزانية]]-جدول_السنة_حتى_الآن[[#This Row],[الفعلية]])","v":{"v":250000,"d":"ر.س.‏ 250,000.00"}},{"$f":"IFERROR(جدول_السنة_حتى_الآن[[#This Row],[المتبقي بالريال السعودي]]/جدول_السنة_حتى_الآن[[#This Row],[الميزانية]],\"\")","v":{"v":1,"d":"100.00%"}}]
[null,12000,"الجهات الراعية",{"$f":"SUMIF(ملخص_المصاريف_الشهرية[رمز G/L],جدول_السنة_حتى_الآن[[#This Row],[رمز G/L]],ملخص_المصاريف_الشهرية[الإجمالي])","v":{"v":0,"d":"ر.س.‏ 0.00"}},{"v":50000,"d":"ر.س.‏ 50,000.00"},{"$f":"IF(جدول_السنة_حتى_الآن[[#This Row],[الميزانية]]=\"\",\"\",جدول_السنة_حتى_الآن[[#This Row],[الميزانية]]-جدول_السنة_حتى_الآن[[#This Row],[الفعلية]])","v":{"v":50000,"d":"ر.س.‏ 50,000.00"}},{"$f":"IFERROR(جدول_السنة_حتى_الآن[[#This Row],[المتبقي بالريال السعودي]]/جدول_السنة_حتى_الآن[[#This Row],[الميزانية]],\"\")","v":{"v":1,"d":"100.00%"}}]
[null,"الإجمالي",null,{"$f":"SUBTOTAL(109,جدول_السنة_حتى_الآن[الفعلية])","v":{"v":0,"d":"ر.س.‏ 0.00"}},{"$f":"SUBTOTAL(109,جدول_السنة_حتى_الآن[الميزانية])","v":{"v":1140000,"d":"ر.س.‏ 1,140,000.00"}},{"$f":"SUBTOTAL(109,جدول_السنة_حتى_الآن[المتبقي بالريال السعودي])","v":{"v":1140000,"d":"ر.س.‏ 1,140,000.00"}},{"$f":"جدول_السنة_حتى_الآن[[#Totals],[المتبقي بالريال السعودي]]/جدول_السنة_حتى_الآن[[#Totals],[الميزانية]]","v":{"v":1,"d":"100.00%"}}]

{"sheet":"ملخص المصاريف الشهرية","index":1,"n_rows":18,"n_cols":17,"rows_kept":18,"merged":[[1,1,1,16]]}
[null,"ملخص موازنة السنة حتى الآن","المصاريف المفصلة"]
[null,"ملخص المصاريف الشهرية"]
[null,"مقسم طريقة العرض لتصفية البيانات حسب \"عناوين حساب\" في هذه الخلية.",null,{"$f":"DATEVALUE(\"1 يناير \"&_السنة)","v":{"v":43466,"d":"4346600.00%"}},{"$f":"DATEVALUE(\"1 فبراير \"&_السنة)","v":{"v":43497,"d":"4349700.00%"}},{"$f":"DATEVALUE(\"1 مارس \"&_السنة)","v":{"v":43525,"d":"4352500.00%"}},{"$f":"DATEVALUE(\"1 أبريل \"&_السنة)","v":{"v":43556,"d":"4355600.00%"}},{"$f":"DATEVALUE(\"1 مايو \"&_السنة)","v":{"v":43586,"d":"4358600.00%"}},{"$f":"DATEVALUE(\"1 يونيو \"&_السنة)","v":{"v":43617,"d":"4361700.00%"}},{"$f":"DATEVALUE(\"1 يوليو \"&_السنة)","v":{"v":43647,"d":"4364700.00%"}},{"$f":"DATEVALUE(\"1 أغسطس \"&_السنة)","v":{"v":43678,"d":"4367800.00%"}},{"$f":"DATEVALUE(\"1 سبتمبر \"&_السنة)","v":{"v":43709,"d":"4370900.00%"}},{"$f":"DATEVALUE(\"1 أكتوبر \"&_السنة)","v":{"v":43739,"d":"4373900.00%"}},{"$f":"DATEVALUE(\"1 نوفمبر \"&_السنة)","v":{"v":43770,"d":"4377000.00%"}},{"$f":"DATEVALUE(\"1 ديسمبر \"&_السنة)","v":{"v":43800,"d":"4380000.00%"}}]
[{"$nulls":3},{"$f":"EOMONTH(D3,0)","v":{"v":43496,"d":"4349600.00%"}},{"$f":"EOMONTH(E3,0)","v":{"v":43524,"d":"4352400.00%"}},{"$f":"EOMONTH(F3,0)","v":{"v":43555,"d":"4355500.00%"}},{"$f":"EOMONTH(G3,0)","v":{"v":43585,"d":"4358500.00%"}},{"$f":"EOMONTH(H3,0)","v":{"v":43616,"d":"4361600.00%"}},{"$f":"EOMONTH(I3,0)","v":{"v":43646,"d":"4364600.00%"}},{"v":43677,"d":"4367700.00%"},{"v":43708,"d":"4370800.00%"},{"v":43738,"d":"4373800.00%"},{"v":43769,"d":"4376900.00%"},{"v":43799,"d":"4379900.00%"},{"v":43830,"d":"4383000.00%"}]
[null,"رمز G/L","عنوان الحساب","يناير","فبراير","مارس","أبريل","مايو","يونيو","يوليو","أغسطس","سبتمبر","أكتوبر","نوفمبر","ديسمبر","الإجمالي"," "]
[null,1000,"الدعاية",{"$f":"SUMIFS(المصاريف_المفصلة[مبلغ الشيك],المصاريف_المفصلة[رمز G/L],ملخص_المصاريف_الشهرية[[#This Row],[رمز G/L]],المصاريف_المفصلة[تاريخ الفاتورة],\">=\"&D$3,المصاريف_المفصلة[تاريخ الفاتورة],\"<=\"&D$4)+SUMIFS(غير_ذلك[مبلغ الشيك],غير_ذلك[رمز G/L],ملخص_المصاريف_الشهرية[[#This Row],[رمز G/L]],غير_ذلك[تاريخ تقديم طلب الشيك],\">=\"&DATEVALUE(\"1 \"&ملخص_المصاريف_الشهرية[[#Headers],[يناير]]&\" \"&_السنة),غير_ذلك[تاريخ تقديم طلب الشيك],\"<=\"&D$4)","v":{"v":0,"d":"ر.س.‏ 0.00"}},{"$f":"SUMIFS(المصاريف_المفصلة[مبلغ الشيك],المصاريف_المفصلة[رمز G/L],ملخص_المصاريف_الشهرية[[#This Row],[رمز G/L]],المصاريف_المفصلة[تاريخ الفاتورة],\">=\"&E$3,المصاريف_المفصلة[تاريخ الفاتورة],\"<=\"&E$4)+SUMIFS(غير_ذلك[مبلغ الشيك],غير_ذلك[رمز G/L],ملخص_المصاريف_الشهرية[[#This Row],[رمز G/L]],غير_ذلك[تاريخ تقديم طلب الشيك],\">=\"&DATEVALUE(\"1 \"&ملخص_المصاريف_الشهرية[[#Headers],[فبراير]]&\" \"&_السنة),غير_ذلك[تاريخ تقديم طلب الشيك],\"<=\"&E$4)","v":{"v":0,"d":"ر.س.‏ 0.00"}},{"$f":"SUMIFS(المصاريف_المفصلة[مبلغ الشيك],المصاريف_المفصلة[رمز G/L],ملخص_المصاريف_الشهرية[[#This Row],[رمز G/L]],المصاريف_المفصلة[تاريخ الفاتورة],\">=\"&F$3,المصاريف_المفصلة[تاريخ الفاتورة],\"<=\"&F$4)+SUMIFS(غير_ذلك[مبلغ الشيك],غير_ذلك[رمز G/L],ملخص_المصاريف_الشهرية[[#This Row],[رمز G/L]],غير_ذلك[تاريخ تقديم طلب الشيك],\">=\"&DATEVALUE(\"1 \"&ملخص_المصاريف_الشهرية[[#Headers],[مارس]]&\" \"&_السنة),غير_ذلك[تاريخ تقديم طلب الشيك],\"<=\"&F$4)","v":{"v":0,"d":"ر.س.‏ 0.00"}},{"$f":"SUMIFS(المصاريف_المفصلة[مبلغ الشيك],المصاريف_المفصلة[رمز G/L],ملخص_المصاريف_الشهرية[[#This Row],[رمز G/L]],المصاريف_المفصلة[تاريخ الفاتورة],\">=\"&G$3,المصاريف_المفصلة[تاريخ الفاتورة],\"<=\"&G$4)+SUMIFS(غير_ذلك[مبلغ الشيك],غير_ذلك[رمز G/L],ملخص_المصاريف_الشهرية[[#This Row],[رمز G/L]],غير_ذلك[تاريخ تقديم طلب الشيك],\">=\"&DATEVALUE(\"1 \"&ملخص_المصاريف_الشهرية[[#Headers],[أبريل]]&\" \"&_السنة),غير_ذلك[تاريخ تقديم طلب الشيك],\"<=\"&G$4)","v":{"v":0,"d":"ر.س.‏ 0.00"}},{"$f":"SUMIFS(المصاريف_المفصلة[مبلغ الشيك],المصاريف_المفصلة[رمز G/L],ملخص_المصاريف_الشهرية[[#This Row],[رمز G/L]],المصاريف_المفصلة[تاريخ الفاتورة],\">=\"&H$3,المصاريف_المفصلة[تاريخ الفاتورة],\"<=\"&H$4)+SUMIFS(غير_ذلك[مبلغ الشيك],غير_ذلك[رمز G/L],ملخص_المصاريف_الشهرية[[#This Row],[رمز G/L]],غير_ذلك[تاريخ تقديم طلب الشيك],\">=\"&DATEVALUE(\"1 \"&ملخص_المصاريف_الشهرية[[#Headers],[مايو]]&\" \"&_السنة),غير_ذلك[تاريخ تقديم طلب الشيك],\"<=\"&H$4)","v":{"v":0,"d":"ر.س.‏ 0.00"}},{"$f":"SUMIFS(المصاريف_المفصلة[مبلغ الشيك],المصاريف_المفصلة[رمز G/L],ملخص_المصاريف_الشهرية[[#This Row],[رمز G/L]],المصاريف_المفصلة[تاريخ الفاتورة],\">=\"&I$3,المصاريف_المفصلة[تاريخ الفاتورة],\"<=\"&I$4)+SUMIFS(غير_ذلك[مبلغ الشيك],غير_ذلك[رمز G/L],ملخص_المصاريف_الشهرية[[#This Row],[رمز G/L]],غير_ذلك[تاريخ تقديم طلب الشيك],\">=\"&DATEVALUE(\"1 \"&ملخص_المصاريف_الشهرية[[#Headers],[يونيو]]&\" \"&_السنة),غير_ذلك[تاريخ تقديم طلب الشيك],\"<=\"&I$4)","v":{"v":0,"d":"ر.س.‏ 0.00"}},{"$f":"SUMIFS(المصاريف_المفصلة[مبلغ الشيك],المصاريف_المفصلة[رمز G/L],ملخص_المصاريف_الشهرية[[#This Row],[رمز G/L]],المصاريف_المفصلة[تاريخ الفاتورة],\">=\"&J$3,المصاريف_المفصلة[تاريخ الفاتورة],\"<=\"&J$4)+SUMIFS(غير_ذلك[مبلغ الشيك],غير_ذلك[رمز G/L],ملخص_المصاريف_الشهرية[[#This Row],[رمز G/L]],غير_ذلك[تاريخ تقديم طلب الشيك],\">=\"&DATEVALUE(\"1 \"&ملخص_المصاريف_الشهرية[[#Headers],[يوليو]]&\" \"&_السنة),غير_ذلك[تاريخ تقديم طلب الشيك],\"<=\"&J$4)","v":{"v":0,"d":"ر.س.‏ 0.00"}},{"$f":"SUMIFS(المصاريف_المفصلة[مبلغ الشيك],المصاريف_المفصلة[رمز G/L],ملخص_المصاريف_الشهرية[[#This Row],[رمز G/L]],المصاريف_المفصلة[تاريخ الفاتورة],\">=\"&K$3,المصاريف_المفصلة[تاريخ الفاتورة],\"<=\"&K$4)+SUMIFS(غير_ذلك[مبلغ الشيك],غير_ذلك[رمز G/L],ملخص_المصاريف_الشهرية[[#This Row],[رمز G/L]],غير_ذلك[تاريخ تقديم طلب الشيك],\">=\"&DATEVALUE(\"1 \"&ملخص_المصاريف_الشهرية[[#Headers],[أغسطس]]&\" \"&_السنة),غير_ذلك[تاريخ تقديم طلب الشيك],\"<=\"&K$4)","v":{"v":0,"d":"ر.س.‏ 0.00"}},{"$f":"SUMIFS(المصاريف_المفصلة[مبلغ الشيك],المصاريف_المفصلة[رمز G/L],ملخص_المصاريف_الشهرية[[#This Row],[رمز G/L]],المصاريف_المفصلة[تاريخ الفاتورة],\">=\"&L$3,المصاريف_المفصلة[تاريخ الفاتورة],\"<=\"&L$4)+SUMIFS(غير_ذلك[مبلغ الشيك],غير_ذلك[رمز G/L],ملخص_المصاريف_الشهرية[[#This Row],[رمز G/L]],غير_ذلك[تاريخ تقديم طلب الشيك],\">=\"&DATEVALUE(\"1 \"&ملخص_المصاريف_الشهرية[[#Headers],[سبتمبر]]&\" \"&_السنة),غير_ذلك[تاريخ تقديم طلب الشيك],\"<=\"&L$4)","v":{"v":0,"d":"ر.س.‏ 0.00"}},{"$f":"SUMIFS(المصاريف_المفصلة[مبلغ الشيك],المصاريف_المفصلة[رمز G/L],ملخص_المصاريف_الشهرية[[#This Row],[رمز G/L]],المصاريف_المفصلة[تاريخ الفاتورة],\">=\"&M$3,المصاريف_المفصلة[تاريخ الفاتورة],\"<=\"&M$4)+SUMIFS(غير_ذلك[مبلغ الشيك],غير_ذلك[رمز G/L],ملخص_المصاريف_الشهرية[[#This Row],[رمز G/L]],غير_ذلك[تاريخ تقديم طلب الشيك],\">=\"&DATEVALUE(\"1 \"&ملخص_المصاريف_الشهرية[[#Headers],[أكتوبر]]&\" \"&_السنة),غير_ذلك[تاريخ تقديم طلب الشيك],\"<=\"&M$4)","v":{"v":0,"d":"ر.س.‏ 0.00"}},{"$f":"SUMIFS(المصاريف_المفصلة[مبلغ الشيك],المصاريف_المفصلة[رمز G/L],ملخص_المصاريف_الشهرية[[#This Row],[رمز G/L]],المصاريف_المفصلة[تاريخ الفاتورة],\">=\"&N$3,المصاريف_المفصلة[تاريخ الفاتورة],\"<=\"&N$4)+SUMIFS(غير_ذلك[مبلغ الشيك],غير_ذلك[رمز G/L],ملخص_المصاريف_الشهرية[[#This Row],[رمز G/L]],غير_ذلك[تاريخ تقديم طلب الشيك],\">=\"&DATEVALUE(\"1 \"&ملخص_المصاريف_الشهرية[[#Headers],[نوفمبر]]&\" \"&_السنة),غير_ذلك[تاريخ تقديم طلب الشيك],\"<=\"&N$4)","v":{"v":0,"d":"ر.س.‏ 0.00"}},{"$f":"SUMIFS(المصاريف_المفصلة[مبلغ الشيك],المصاريف_المفصلة[رمز G/L],ملخص_المصاريف_الشهرية[[#This Row],[رمز G/L]],المصاريف_المفصلة[تاريخ الفاتورة],\">=\"&O$3,المصاريف_المفصلة[تاريخ الفاتورة],\"<=\"&O$4)+SUMIFS(غير_ذلك[مبلغ الشيك],غير_ذلك[رمز G/L],ملخص_المصاريف_الشهرية[[#This Row],[رمز G/L]],غير_ذلك[تاريخ تقديم طلب الشيك],\">=\"&DATEVALUE(\"1 \"&ملخص_المصاريف_الشهرية[[#Headers],[ديسمبر]]&\" \"&_السنة),غير_ذلك[تاريخ تقديم طلب الشيك],\"<=\"&O$4)","v":{"v":0,"d":"ر.س.‏ 0.00"}},{"$f":"SUM(ملخص_المصاريف_الشهرية[[#This Row],[يناير]:[ديسمبر]])","v":{"v":0,"d":"ر.س.‏ 0.00"}}]
[null,2000,"معدات مكتبية",{"$f":"SUMIFS(المصاريف_المفصلة[مبلغ الشيك],المصاريف_المفصلة[رمز G/L],ملخص_المصاريف_الشهرية[[#This Row],[رمز G/L]],المصاريف_المفصلة[تاريخ الفاتورة],\">=\"&D$3,المصاريف_المفصلة[تاريخ الفاتورة],\"<=\"&D$4)+SUMIFS(غير_ذلك[مبلغ الشيك],غير_ذلك[رمز G/L],ملخص_المصاريف_الشهرية[[#This Row],[رمز G/L]],غير_ذلك[تاريخ تقديم طلب الشيك],\">=\"&DATEVALUE(\"1 \"&ملخص_المصاريف_الشهرية[[#Headers],[يناير]]&\" \"&_السنة),غير_ذلك[تاريخ تقديم طلب الشيك],\"<=\"&D$4)","v":{"v":0,"d":"ر.س.‏ 0.00"}},{"$f":"SUMIFS(المصاريف_المفصلة[مبلغ الشيك],المصاريف_المفصلة[رمز G/L],ملخص_المصاريف_الشهرية[[#This Row],[رمز G/L]],المصاريف_المفصلة[تاريخ الفاتورة],\">=\"&E$3,المصاريف_المفصلة[تاريخ الفاتورة],\"<=\"&E$4)+SUMIFS(غير_ذلك[مبلغ الشيك],غير_ذلك[رمز G/L],ملخص_المصاريف_الشهرية[[#This Row],[رمز G/L]],غير_ذلك[تاريخ تقديم طلب الشيك],\">=\"&DATEVALUE(\"1 \"&ملخص_المصاريف_الشهرية[[#Headers],[فبراير]]&\" \"&_السنة),غير_ذلك[تاريخ تقديم طلب الشيك],\"<=\"&E$4)","v":{"v":0,"d":"ر.س.‏ 0.00"}},{"$f":"SUMIFS(المصاريف_المفصلة[مبلغ الشيك],المصاريف_المفصلة[رمز G/L],ملخص_المصاريف_الشهرية[[#This Row],[رمز G/L]],المصاريف_المفصلة[تاريخ الفاتورة],\">=\"&F$3,المصاريف_المفصلة[تاريخ الفاتورة],\"<=\"&F$4)+SUMIFS(غير_ذلك[مبلغ الشيك],غير_ذلك[رمز G/L],ملخص_المصاريف_الشهرية[[#This Row],[رمز G/L]],غير_ذلك[تاريخ تقديم طلب الشيك],\">=\"&DATEVALUE(\"1 \"&ملخص_المصاريف_الشهرية[[#Headers],[مارس]]&\" \"&_السنة),غير_ذلك[تاريخ تقديم طلب الشيك],\"<=\"&F$4)","v":{"v":0,"d":"ر.س.‏ 0.00"}},{"$f":"SUMIFS(المصاريف_المفصلة[مبلغ الشيك],المصاريف_المفصلة[رمز G/L],ملخص_المصاريف_الشهرية[[#This Row],[رمز G/L]],المصاريف_المفصلة[تاريخ الفاتورة],\">=\"&G$3,المصاريف_المفصلة[تاريخ الفاتورة],\"<=\"&G$4)+SUMIFS(غير_ذلك[مبلغ الشيك],غير_ذلك[رمز G/L],ملخص_المصاريف_الشهرية[[#This Row],[رمز G/L]],غير_ذلك[تاريخ تقديم طلب الشيك],\">=\"&DATEVALUE(\"1 \"&ملخص_المصاريف_الشهرية[[#Headers],[أبريل]]&\" \"&_السنة),غير_ذلك[تاريخ تقديم طلب الشيك],\"<=\"&G$4)","v":{"v":0,"d":"ر.س.‏ 0.00"}},{"$f":"SUMIFS(المصاريف_المفصلة[مبلغ الشيك],المصاريف_المفصلة[رمز G/L],ملخص_المصاريف_الشهرية[[#This Row],[رمز G/L]],المصاريف_المفصلة[تاريخ الفاتورة],\">=\"&H$3,المصاريف_المفصلة[تاريخ الفاتورة],\"<=\"&H$4)+SUMIFS(غير_ذلك[مبلغ الشيك],غير_ذلك[رمز G/L],ملخص_المصاريف_الشهرية[[#This Row],[رمز G/L]],غير_ذلك[تاريخ تقديم طلب الشيك],\">=\"&DATEVALUE(\"1 \"&ملخص_المصاريف_الشهرية[[#Headers],[مايو]]&\" \"&_السنة),غير_ذلك[تاريخ تقديم طلب الشيك],\"<=\"&H$4)","v":{"v":0,"d":"ر.س.‏ 0.00"}},{"$f":"SUMIFS(المصاريف_المفصلة[مبلغ الشيك],المصاريف_المفصلة[رمز G/L],ملخص_المصاريف_الشهرية[[#This Row],[رمز G/L]],المصاريف_المفصلة[تاريخ الفاتورة],\">=\"&I$3,المصاريف_المفصلة[تاريخ الفاتورة],\"<=\"&I$4)+SUMIFS(غير_ذلك[مبلغ الشيك],غير_ذلك[رمز G/L],ملخص_المصاريف_الشهرية[[#This Row],[رمز G/L]],غير_ذلك[تاريخ تقديم طلب الشيك],\">=\"&DATEVALUE(\"1 \"&ملخص_المصاريف_الشهرية[[#Headers],[يونيو]]&\" \"&_السنة),غير_ذلك[تاريخ تقديم طلب الشيك],\"<=\"&I$4)","v":{"v":0,"d":"ر.س.‏ 0.00"}},{"$f":"SUMIFS(المصاريف_المفصلة[مبلغ الشيك],المصاريف_المفصلة[رمز G/L],ملخص_المصاريف_الشهرية[[#This Row],[رمز G/L]],المصاريف_المفصلة[تاريخ الفاتورة],\">=\"&J$3,المصاريف_المفصلة[تاريخ الفاتورة],\"<=\"&J$4)+SUMIFS(غير_ذلك[مبلغ الشيك],غير_ذلك[رمز G/L],ملخص_المصاريف_الشهرية[[#This Row],[رمز G/L]],غير_ذلك[تاريخ تقديم طلب الشيك],\">=\"&DATEVALUE(\"1 \"&ملخص_المصاريف_الشهرية[[#Headers],[يوليو]]&\" \"&_السنة),غير_ذلك[تاريخ تقديم طلب الشيك],\"<=\"&J$4)","v":{"v":0,"d":"ر.س.‏ 0.00"}},{"$f":"SUMIFS(المصاريف_المفصلة[مبلغ الشيك],المصاريف_المفصلة[رمز G/L],ملخص_المصاريف_الشهرية[[#This Row],[رمز G/L]],المصاريف_المفصلة[تاريخ الفاتورة],\">=\"&K$3,المصاريف_المفصلة[تاريخ الفاتورة],\"<=\"&K$4)+SUMIFS(غير_ذلك[مبلغ الشيك],غير_ذلك[رمز G/L],ملخص_المصاريف_الشهرية[[#This Row],[رمز G/L]],غير_ذلك[تاريخ تقديم طلب الشيك],\">=\"&DATEVALUE(\"1 \"&ملخص_المصاريف_الشهرية[[#Headers],[أغسطس]]&\" \"&_السنة),غير_ذلك[تاريخ تقديم طلب الشيك],\"<=\"&K$4)","v":{"v":0,"d":"ر.س.‏ 0.00"}},{"$f":"SUMIFS(المصاريف_المفصلة[مبلغ الشيك],المصاريف_المفصلة[رمز G/L],ملخص_المصاريف_الشهرية[[#This Row],[رمز G/L]],المصاريف_المفصلة[تاريخ الفاتورة],\">=\"&L$3,المصاريف_المفصلة[تاريخ الفاتورة],\"<=\"&L$4)+SUMIFS(غير_ذلك[مبلغ الشيك],غير_ذلك[رمز G/L],ملخص_المصاريف_الشهرية[[#This Row],[رمز G/L]],غير_ذلك[تاريخ تقديم طلب الشيك],\">=\"&DATEVALUE(\"1 \"&ملخص_المصاريف_الشهرية[[#Headers],[سبتمبر]]&\" \"&_السنة),غير_ذلك[تاريخ تقديم طلب الشيك],\"<=\"&L$4)","v":{"v":0,"d":"ر.س.‏ 0.00"}},{"$f":"SUMIFS(المصاريف_المفصلة[مبلغ الشيك],المصاريف_المفصلة[رمز G/L],ملخص_المصاريف_الشهرية[[#This Row],[رمز G/L]],المصاريف_المفصلة[تاريخ الفاتورة],\">=\"&M$3,المصاريف_المفصلة[تاريخ الفاتورة],\"<=\"&M$4)+SUMIFS(غير_ذلك[مبلغ الشيك],غير_ذلك[رمز G/L],ملخص_المصاريف_الشهرية[[#This Row],[رمز G/L]],غير_ذلك[تاريخ تقديم طلب الشيك],\">=\"&DATEVALUE(\"1 \"&ملخص_المصاريف_الشهرية[[#Headers],[أكتوبر]]&\" \"&_السنة),غير_ذلك[تاريخ تقديم طلب الشيك],\"<=\"&M$4)","v":{"v":0,"d":"ر.س.‏ 0.00"}},{"$f":"SUMIFS(المصاريف_المفصلة[مبلغ الشيك],المصاريف_المفصلة[رمز G/L],ملخص_المصاريف_الشهرية[[#This Row],[رمز G/L]],المصاريف_المفصلة[تاريخ الفاتورة],\">=\"&N$3,المصاريف_المفصلة[تاريخ الفاتورة],\"<=\"&N$4)+SUMIFS(غير_ذلك[مبلغ الشيك],غير_ذلك[رمز G/L],ملخص_المصاريف_الشهرية[[#This Row],[رمز G/L]],غير_ذلك[تاريخ تقديم طلب الشيك],\">=\"&DATEVALUE(\"1 \"&ملخص_المصاريف_الشهرية[[#Headers],[نوفمبر]]&\" \"&_السنة),غير_ذلك[تاريخ تقديم طلب الشيك],\"<=\"&N$4)","v":{"v":0,"d":"ر.س.‏ 0.00"}},{"$f":"SUMIFS(المصاريف_المفصلة[مبلغ الشيك],المصاريف_المفصلة[رمز G/L],ملخص_المصاريف_الشهرية[[#This Row],[رمز G/L]],المصاريف_المفصلة[تاريخ الفاتورة],\">=\"&O$3,المصاريف_المفصلة[تاريخ الفاتورة],\"<=\"&O$4)+SUMIFS(غير_ذلك[مبلغ الشيك],غير_ذلك[رمز G/L],ملخص_المصاريف_الشهرية[[#This Row],[رمز G/L]],غير_ذلك[تاريخ تقديم طلب الشيك],\">=\"&DATEVALUE(\"1 \"&ملخص_المصاريف_الشهرية[[#Headers],[ديسمبر]]&\" \"&_السنة),غير_ذلك[تاريخ تقديم طلب الشيك],\"<=\"&O$4)","v":{"v":0,"d":"ر.س.‏ 0.00"}},{"$f":"SUM(ملخص_المصاريف_الشهرية[[#This Row],[يناير]:[ديسمبر]])","v":{"v":0,"d":"ر.س.‏ 0.00"}}]
[null,3000,"الطابعات",{"$f":"SUMIFS(المصاريف_المفصلة[مبلغ الشيك],المصاريف_المفصلة[رمز G/L],ملخص_المصاريف_الشهرية[[#This Row],[رمز G/L]],المصاريف_المفصلة[تاريخ الفاتورة],\">=\"&D$3,المصاريف_المفصلة[تاريخ الفاتورة],\"<=\"&D$4)+SUMIFS(غير_ذلك[مبلغ الشيك],غير_ذلك[رمز G/L],ملخص_المصاريف_الشهرية[[#This Row],[رمز G/L]],غير_ذلك[تاريخ تقديم طلب الشيك],\">=\"&DATEVALUE(\"1 \"&ملخص_المصاريف_الشهرية[[#Headers],[يناير]]&\" \"&_السنة),غير_ذلك[تاريخ تقديم طلب الشيك],\"<=\"&D$4)","v":{"v":0,"d":"ر.س.‏ 0.00"}},{"$f":"SUMIFS(المصاريف_المفصلة[مبلغ الشيك],المصاريف_المفصلة[رمز G/L],ملخص_المصاريف_الشهرية[[#This Row],[رمز G/L]],المصاريف_المفصلة[تاريخ الفاتورة],\">=\"&E$3,المصاريف_المفصلة[تاريخ الفاتورة],\"<=\"&E$4)+SUMIFS(غير_ذلك[مبلغ الشيك],غير_ذلك[رمز G/L],ملخص_المصاريف_الشهرية[[#This Row],[رمز G/L]],غير_ذلك[تاريخ تقديم طلب الشيك],\">=\"&DATEVALUE(\"1 \"&ملخص_المصاريف_الشهرية[[#Headers],[فبراير]]&\" \"&_السنة),غير_ذلك[تاريخ تقديم طلب الشيك],\"<=\"&E$4)","v":{"v":0,"d":"ر.س.‏ 0.00"}},{"$f":"SUMIFS(المصاريف_المفصلة[مبلغ الشيك],المصاريف_المفصلة[رمز G/L],ملخص_المصاريف_الشهرية[[#This Row],[رمز G/L]],المصاريف_المفصلة[تاريخ الفاتورة],\">=\"&F$3,المصاريف_المفصلة[تاريخ الفاتورة],\"<=\"&F$4)+SUMIFS(غير_ذلك[مبلغ الشيك],غير_ذلك[رمز G/L],ملخص_المصاريف_الشهرية[[#This Row],[رمز G/L]],غير_ذلك[تاريخ تقديم طلب الشيك],\">=\"&DATEVALUE(\"1 \"&ملخص_المصاريف_الشهرية[[#Headers],[مارس]]&\" \"&_السنة),غير_ذلك[تاريخ تقديم طلب الشيك],\"<=\"&F$4)","v":{"v":0,"d":"ر.س.‏ 0.00"}},{"$f":"SUMIFS(المصاريف_المفصلة[مبلغ الشيك],المصاريف_المفصلة[رمز G/L],ملخص_المصاريف_الشهرية[[#This Row],[رمز G/L]],المصاريف_المفصلة[تاريخ الفاتورة],\">=\"&G$3,المصاريف_المفصلة[تاريخ الفاتورة],\"<=\"&G$4)+SUMIFS(غير_ذلك[مبلغ الشيك],غير_ذلك[رمز G/L],ملخص_المصاريف_الشهرية[[#This Row],[رمز G/L]],غير_ذلك[تاريخ تقديم طلب الشيك],\">=\"&DATEVALUE(\"1 \"&ملخص_المصاريف_الشهرية[[#Headers],[أبريل]]&\" \"&_السنة),غير_ذلك[تاريخ تقديم طلب الشيك],\"<=\"&G$4)","v":{"v":0,"d":"ر.س.‏ 0.00"}},{"$f":"SUMIFS(المصاريف_المفصلة[مبلغ الشيك],المصاريف_المفصلة[رمز G/L],ملخص_المصاريف_الشهرية[[#This Row],[رمز G/L]],المصاريف_المفصلة[تاريخ الفاتورة],\">=\"&H$3,المصاريف_المفصلة[تاريخ الفاتورة],\"<=\"&H$4)+SUMIFS(غير_ذلك[مبلغ الشيك],غير_ذلك[رمز G/L],ملخص_المصاريف_الشهرية[[#This Row],[رمز G/L]],غير_ذلك[تاريخ تقديم طلب الشيك],\">=\"&DATEVALUE(\"1 \"&ملخص_المصاريف_الشهرية[[#Headers],[مايو]]&\" \"&_السنة),غير_ذلك[تاريخ تقديم طلب الشيك],\"<=\"&H$4)","v":{"v":0,"d":"ر.س.‏ 0.00"}},{"$f":"SUMIFS(المصاريف_المفصلة[مبلغ الشيك],المصاريف_المفصلة[رمز G/L],ملخص_المصاريف_الشهرية[[#This Row],[رمز G/L]],المصاريف_المفصلة[تاريخ الفاتورة],\">=\"&I$3,المصاريف_المفصلة[تاريخ الفاتورة],\"<=\"&I$4)+SUMIFS(غير_ذلك[مبلغ الشيك],غير_ذلك[رمز G/L],ملخص_المصاريف_الشهرية[[#This Row],[رمز G/L]],غير_ذلك[تاريخ تقديم طلب الشيك],\">=\"&DATEVALUE(\"1 \"&ملخص_المصاريف_الشهرية[[#Headers],[يونيو]]&\" \"&_السنة),غير_ذلك[تاريخ تقديم طلب الشيك],\"<=\"&I$4)","v":{"v":0,"d":"ر.س.‏ 0.00"}},{"$f":"SUMIFS(المصاريف_المفصلة[مبلغ الشيك],المصاريف_المفصلة[رمز G/L],ملخص_المصاريف_الشهرية[[#This Row],[رمز G/L]],المصاريف_المفصلة[تاريخ الفاتورة],\">=\"&J$3,المصاريف_المفصلة[تاريخ الفاتورة],\"<=\"&J$4)+SUMIFS(غير_ذلك[مبلغ الشيك],غير_ذلك[رمز G/L],ملخص_المصاريف_الشهرية[[#This Row],[رمز G/L]],غير_ذلك[تاريخ تقديم طلب الشيك],\">=\"&DATEVALUE(\"1 \"&ملخص_المصاريف_الشهرية[[#Headers],[يوليو]]&\" \"&_السنة),غير_ذلك[تاريخ تقديم طلب الشيك],\"<=\"&J$4)","v":{"v":0,"d":"ر.س.‏ 0.00"}},{"$f":"SUMIFS(المصاريف_المفصلة[مبلغ الشيك],المصاريف_المفصلة[رمز G/L],ملخص_المصاريف_الشهرية[[#This Row],[رمز G/L]],المصاريف_المفصلة[تاريخ الفاتورة],\">=\"&K$3,المصاريف_المفصلة[تاريخ الفاتورة],\"<=\"&K$4)+SUMIFS(غير_ذلك[مبلغ الشيك],غير_ذلك[رمز G/L],ملخص_المصاريف_الشهرية[[#This Row],[رمز G/L]],غير_ذلك[تاريخ تقديم طلب الشيك],\">=\"&DATEVALUE(\"1 \"&ملخص_المصاريف_الشهرية[[#Headers],[أغسطس]]&\" \"&_السنة),غير_ذلك[تاريخ تقديم طلب الشيك],\"<=\"&K$4)","v":{"v":0,"d":"ر.س.‏ 0.00"}},{"$f":"SUMIFS(المصاريف_المفصلة[مبلغ الشيك],المصاريف_المفصلة[رمز G/L],ملخص_المصاريف_الشهرية[[#This Row],[رمز G/L]],المصاريف_المفصلة[تاريخ الفاتورة],\">=\"&L$3,المصاريف_المفصلة[تاريخ الفاتورة],\"<=\"&L$4)+SUMIFS(غير_ذلك[مبلغ الشيك],غير_ذلك[رمز G/L],ملخص_المصاريف_الشهرية[[#This Row],[رمز G/L]],غير_ذلك[تاريخ تقديم طلب الشيك],\">=\"&DATEVALUE(\"1 \"&ملخص_المصاريف_الشهرية[[#Headers],[سبتمبر]]&\" \"&_السنة),غير_ذلك[تاريخ تقديم طلب الشيك],\"<=\"&L$4)","v":{"v":0,"d":"ر.س.‏ 0.00"}},{"$f":"SUMIFS(المصاريف_المفصلة[مبلغ الشيك],المصاريف_المفصلة[رمز G/L],ملخص_المصاريف_الشهرية[[#This Row],[رمز G/L]],المصاريف_المفصلة[تاريخ الفاتورة],\">=\"&M$3,المصاريف_المفصلة[تاريخ الفاتورة],\"<=\"&M$4)+SUMIFS(غير_ذلك[مبلغ الشيك],غير_ذلك[رمز G/L],ملخص_المصاريف_الشهرية[[#This Row],[رمز G/L]],غير_ذلك[تاريخ تقديم طلب الشيك],\">=\"&DATEVALUE(\"1 \"&ملخص_المصاريف_الشهرية[[#Headers],[أكتوبر]]&\" \"&_السنة),غير_ذلك[تاريخ تقديم طلب الشيك],\"<=\"&M$4)","v":{"v":0,"d":"ر.س.‏ 0.00"}},{"$f":"SUMIFS(المصاريف_المفصلة[مبلغ الشيك],المصاريف_المفصلة[رمز G/L],ملخص_المصاريف_الشهرية[[#This Row],[رمز G/L]],المصاريف_المفصلة[تاريخ الفاتورة],\">=\"&N$3,المصاريف_المفصلة[تاريخ الفاتورة],\"<=\"&N$4)+SUMIFS(غير_ذلك[مبلغ الشيك],غير_ذلك[رمز G/L],ملخص_المصاريف_الشهرية[[#This Row],[رمز G/L]],غير_ذلك[تاريخ تقديم طلب الشيك],\">=\"&DATEVALUE(\"1 \"&ملخص_المصاريف_الشهرية[[#Headers],[نوفمبر]]&\" \"&_السنة),غير_ذلك[تاريخ تقديم طلب الشيك],\"<=\"&N$4)","v":{"v":0,"d":"ر.س.‏ 0.00"}},{"$f":"SUMIFS(المصاريف_المفصلة[مبلغ الشيك],المصاريف_المفصلة[رمز G/L],ملخص_المصاريف_الشهرية[[#This Row],[رمز G/L]],المصاريف_المفصلة[تاريخ الفاتورة],\">=\"&O$3,المصاريف_المفصلة[تاريخ الفاتورة],\"<=\"&O$4)+SUMIFS(غير_ذلك[مبلغ الشيك],غير_ذلك[رمز G/L],ملخص_المصاريف_الشهرية[[#This Row],[رمز G/L]],غير_ذلك[تاريخ تقديم طلب الشيك],\">=\"&DATEVALUE(\"1 \"&ملخص_المصاريف_الشهرية[[#Headers],[ديسمبر]]&\" \"&_السنة),غير_ذلك[تاريخ تقديم طلب الشيك],\"<=\"&O$4)","v":{"v":0,"d":"ر.س.‏ 0.00"}},{"$f":"SUM(ملخص_المصاريف_الشهرية[[#This Row],[يناير]:[ديسمبر]])","v":{"v":0,"d":"ر.س.‏ 0.00"}}]
[null,4000,"تكاليف الخادم",{"$f":"SUMIFS(المصاريف_المفصلة[مبلغ الشيك],المصاريف_المفصلة[رمز G/L],ملخص_المصاريف_الشهرية[[#This Row],[رمز G/L]],المصاريف_المفصلة[تاريخ الفاتورة],\">=\"&D$3,المصاريف_المفصلة[تاريخ الفاتورة],\"<=\"&D$4)+SUMIFS(غير_ذلك[مبلغ الشيك],غير_ذلك[رمز G/L],ملخص_المصاريف_الشهرية[[#This Row],[رمز G/L]],غير_ذلك[تاريخ تقديم طلب الشيك],\">=\"&DATEVALUE(\"1 \"&ملخص_المصاريف_الشهرية[[#Headers],[يناير]]&\" \"&_السنة),غير_ذلك[تاريخ تقديم طلب الشيك],\"<=\"&D$4)","v":{"v":0,"d":"ر.س.‏ 0.00"}},{"$f":"SUMIFS(المصاريف_المفصلة[مبلغ الشيك],المصاريف_المفصلة[رمز G/L],ملخص_المصاريف_الشهرية[[#This Row],[رمز G/L]],المصاريف_المفصلة[تاريخ الفاتورة],\">=\"&E$3,المصاريف_المفصلة[تاريخ الفاتورة],\"<=\"&E$4)+SUMIFS(غير_ذلك[مبلغ الشيك],غير_ذلك[رمز G/L],ملخص_المصاريف_الشهرية[[#This Row],[رمز G/L]],غير_ذلك[تاريخ تقديم طلب الشيك],\">=\"&DATEVALUE(\"1 \"&ملخص_المصاريف_الشهرية[[#Headers],[فبراير]]&\" \"&_السنة),غير_ذلك[تاريخ تقديم طلب الشيك],\"<=\"&E$4)","v":{"v":0,"d":"ر.س.‏ 0.00"}},{"$f":"SUMIFS(المصاريف_المفصلة[مبلغ الشيك],المصاريف_المفصلة[رمز G/L],ملخص_المصاريف_الشهرية[[#This Row],[رمز G/L]],المصاريف_المفصلة[تاريخ الفاتورة],\">=\"&F$3,المصاريف_المفصلة[تاريخ الفاتورة],\"<=\"&F$4)+SUMIFS(غير_ذلك[مبلغ الشيك],غير_ذلك[رمز G/L],ملخص_المصاريف_الشهرية[[#This Row],[رمز G/L]],غير_ذلك[تاريخ تقديم طلب الشيك],\">=\"&DATEVALUE(\"1 \"&ملخص_المصاريف_الشهرية[[#Headers],[مارس]]&\" \"&_السنة),غير_ذلك[تاريخ تقديم طلب الشيك],\"<=\"&F$4)","v":{"v":0,"d":"ر.س.‏ 0.00"}},{"$f":"SUMIFS(المصاريف_المفصلة[مبلغ الشيك],المصاريف_المفصلة[رمز G/L],ملخص_المصاريف_الشهرية[[#This Row],[رمز G/L]],المصاريف_المفصلة[تاريخ الفاتورة],\">=\"&G$3,المصاريف_المفصلة[تاريخ الفاتورة],\"<=\"&G$4)+SUMIFS(غير_ذلك[مبلغ الشيك],غير_ذلك[رمز G/L],ملخص_المصاريف_الشهرية[[#This Row],[رمز G/L]],غير_ذلك[تاريخ تقديم طلب الشيك],\">=\"&DATEVALUE(\"1 \"&ملخص_المصاريف_الشهرية[[#Headers],[أبريل]]&\" \"&_السنة),غير_ذلك[تاريخ تقديم طلب الشيك],\"<=\"&G$4)","v":{"v":0,"d":"ر.س.‏ 0.00"}},{"$f":"SUMIFS(المصاريف_المفصلة[مبلغ الشيك],المصاريف_المفصلة[رمز G/L],ملخص_المصاريف_الشهرية[[#This Row],[رمز G/L]],المصاريف_المفصلة[تاريخ الفاتورة],\">=\"&H$3,المصاريف_المفصلة[تاريخ الفاتورة],\"<=\"&H$4)+SUMIFS(غير_ذلك[مبلغ الشيك],غير_ذلك[رمز G/L],ملخص_المصاريف_الشهرية[[#This Row],[رمز G/L]],غير_ذلك[تاريخ تقديم طلب الشيك],\">=\"&DATEVALUE(\"1 \"&ملخص_المصاريف_الشهرية[[#Headers],[مايو]]&\" \"&_السنة),غير_ذلك[تاريخ تقديم طلب الشيك],\"<=\"&H$4)","v":{"v":0,"d":"ر.س.‏ 0.00"}},{"$f":"SUMIFS(المصاريف_المفصلة[مبلغ الشيك],المصاريف_المفصلة[رمز G/L],ملخص_المصاريف_الشهرية[[#This Row],[رمز G/L]],المصاريف_المفصلة[تاريخ الفاتورة],\">=\"&I$3,المصاريف_المفصلة[تاريخ الفاتورة],\"<=\"&I$4)+SUMIFS(غير_ذلك[مبلغ الشيك],غير_ذلك[رمز G/L],ملخص_المصاريف_الشهرية[[#This Row],[رمز G/L]],غير_ذلك[تاريخ تقديم طلب الشيك],\">=\"&DATEVALUE(\"1 \"&ملخص_المصاريف_الشهرية[[#Headers],[يونيو]]&\" \"&_السنة),غير_ذلك[تاريخ تقديم طلب الشيك],\"<=\"&I$4)","v":{"v":0,"d":"ر.س.‏ 0.00"}},{"$f":"SUMIFS(المصاريف_المفصلة[مبلغ الشيك],المصاريف_المفصلة[رمز G/L],ملخص_المصاريف_الشهرية[[#This Row],[رمز G/L]],المصاريف_المفصلة[تاريخ الفاتورة],\">=\"&J$3,المصاريف_المفصلة[تاريخ الفاتورة],\"<=\"&J$4)+SUMIFS(غير_ذلك[مبلغ الشيك],غير_ذلك[رمز G/L],ملخص_المصاريف_الشهرية[[#This Row],[رمز G/L]],غير_ذلك[تاريخ تقديم طلب الشيك],\">=\"&DATEVALUE(\"1 \"&ملخص_المصاريف_الشهرية[[#Headers],[يوليو]]&\" \"&_السنة),غير_ذلك[تاريخ تقديم طلب الشيك],\"<=\"&J$4)","v":{"v":0,"d":"ر.س.‏ 0.00"}},{"$f":"SUMIFS(المصاريف_المفصلة[مبلغ الشيك],المصاريف_المفصلة[رمز G/L],ملخص_المصاريف_الشهرية[[#This Row],[رمز G/L]],المصاريف_المفصلة[تاريخ الفاتورة],\">=\"&K$3,المصاريف_المفصلة[تاريخ الفاتورة],\"<=\"&K$4)+SUMIFS(غير_ذلك[مبلغ الشيك],غير_ذلك[رمز G/L],ملخص_المصاريف_الشهرية[[#This Row],[رمز G/L]],غير_ذلك[تاريخ تقديم طلب الشيك],\">=\"&DATEVALUE(\"1 \"&ملخص_المصاريف_الشهرية[[#Headers],[أغسطس]]&\" \"&_السنة),غير_ذلك[تاريخ تقديم طلب الشيك],\"<=\"&K$4)","v":{"v":0,"d":"ر.س.‏ 0.00"}},{"$f":"SUMIFS(المصاريف_المفصلة[مبلغ الشيك],المصاريف_المفصلة[رمز G/L],ملخص_المصاريف_الشهرية[[#This Row],[رمز G/L]],المصاريف_المفصلة[تاريخ الفاتورة],\">=\"&L$3,المصاريف_المفصلة[تاريخ الفاتورة],\"<=\"&L$4)+SUMIFS(غير_ذلك[مبلغ الشيك],غير_ذلك[رمز G/L],ملخص_المصاريف_الشهرية[[#This Row],[رمز G/L]],غير_ذلك[تاريخ تقديم طلب الشيك],\">=\"&DATEVALUE(\"1 \"&ملخص_المصاريف_الشهرية[[#Headers],[سبتمبر]]&\" \"&_السنة),غير_ذلك[تاريخ تقديم طلب الشيك],\"<=\"&L$4)","v":{"v":0,"d":"ر.س.‏ 0.00"}},{"$f":"SUMIFS(المصاريف_المفصلة[مبلغ الشيك],المصاريف_المفصلة[رمز G/L],ملخص_المصاريف_الشهرية[[#This Row],[رمز G/L]],المصاريف_المفصلة[تاريخ الفاتورة],\">=\"&M$3,المصاريف_المفصلة[تاريخ الفاتورة],\"<=\"&M$4)+SUMIFS(غير_ذلك[مبلغ الشيك],غير_ذلك[رمز G/L],ملخص_المصاريف_الشهرية[[#This Row],[رمز G/L]],غير_ذلك[تاريخ تقديم طلب الشيك],\">=\"&DATEVALUE(\"1 \"&ملخص_المصاريف_الشهرية[[#Headers],[أكتوبر]]&\" \"&_السنة),غير_ذلك[تاريخ تقديم طلب الشيك],\"<=\"&M$4)","v":{"v":0,"d":"ر.س.‏ 0.00"}},{"$f":"SUMIFS(المصاريف_المفصلة[مبلغ الشيك],المصاريف_المفصلة[رمز G/L],ملخص_المصاريف_الشهرية[[#This Row],[رمز G/L]],المصاريف_المفصلة[تاريخ الفاتورة],\">=\"&N$3,المصاريف_المفصلة[تاريخ الفاتورة],\"<=\"&N$4)+SUMIFS(غير_ذلك[مبلغ الشيك],غير_ذلك[رمز G/L],ملخص_المصاريف_الشهرية[[#This Row],[رمز G/L]],غير_ذلك[تاريخ تقديم طلب الشيك],\">=\"&DATEVALUE(\"1 \"&ملخص_المصاريف_الشهرية[[#Headers],[نوفمبر]]&\" \"&_السنة),غير_ذلك[تاريخ تقديم طلب الشيك],\"<=\"&N$4)","v":{"v":0,"d":"ر.س.‏ 0.00"}},{"$f":"SUMIFS(المصاريف_المفصلة[مبلغ الشيك],المصاريف_المفصلة[رمز G/L],ملخص_المصاريف_الشهرية[[#This Row],[رمز G/L]],المصاريف_المفصلة[تاريخ الفاتورة],\">=\"&O$3,المصاريف_المفصلة[تاريخ الفاتورة],\"<=\"&O$4)+SUMIFS(غير_ذلك[مبلغ الشيك],غير_ذلك[رمز G/L],ملخص_المصاريف_الشهرية[[#This Row],[رمز G/L]],غير_ذلك[تاريخ تقديم طلب الشيك],\">=\"&DATEVALUE(\"1 \"&ملخص_المصاريف_الشهرية[[#Headers],[ديسمبر]]&\" \"&_السنة),غير_ذلك[تاريخ تقديم طلب الشيك],\"<=\"&O$4)","v":{"v":0,"d":"ر.س.‏ 0.00"}},{"$f":"SUM(ملخص_المصاريف_الشهرية[[#This Row],[يناير]:[ديسمبر]])","v":{"v":0,"d":"ر.س.‏ 0.00"}}]
[null,5000,"المستلزمات",{"$f":"SUMIFS(المصاريف_المفصلة[مبلغ الشيك],المصاريف_المفصلة[رمز G/L],ملخص_المصاريف_الشهرية[[#This Row],[رمز G/L]],المصاريف_المفصلة[تاريخ الفاتورة],\">=\"&D$3,المصاريف_المفصلة[تاريخ الفاتورة],\"<=\"&D$4)+SUMIFS(غير_ذلك[مبلغ الشيك],غير_ذلك[رمز G/L],ملخص_المصاريف_الشهرية[[#This Row],[رمز G/L]],غير_ذلك[تاريخ تقديم طلب الشيك],\">=\"&DATEVALUE(\"1 \"&ملخص_المصاريف_الشهرية[[#Headers],[يناير]]&\" \"&_السنة),غير_ذلك[تاريخ تقديم طلب الشيك],\"<=\"&D$4)","v":{"v":0,"d":"ر.س.‏ 0.00"}},{"$f":"SUMIFS(المصاريف_المفصلة[مبلغ الشيك],المصاريف_المفصلة[رمز G/L],ملخص_المصاريف_الشهرية[[#This Row],[رمز G/L]],المصاريف_المفصلة[تاريخ الفاتورة],\">=\"&E$3,المصاريف_المفصلة[تاريخ الفاتورة],\"<=\"&E$4)+SUMIFS(غير_ذلك[مبلغ الشيك],غير_ذلك[رمز G/L],ملخص_المصاريف_الشهرية[[#This Row],[رمز G/L]],غير_ذلك[تاريخ تقديم طلب الشيك],\">=\"&DATEVALUE(\"1 \"&ملخص_المصاريف_الشهرية[[#Headers],[فبراير]]&\" \"&_السنة),غير_ذلك[تاريخ تقديم طلب الشيك],\"<=\"&E$4)","v":{"v":0,"d":"ر.س.‏ 0.00"}},{"$f":"SUMIFS(المصاريف_المفصلة[مبلغ الشيك],المصاريف_المفصلة[رمز G/L],ملخص_المصاريف_الشهرية[[#This Row],[رمز G/L]],المصاريف_المفصلة[تاريخ الفاتورة],\">=\"&F$3,المصاريف_المفصلة[تاريخ الفاتورة],\"<=\"&F$4)+SUMIFS(غير_ذلك[مبلغ الشيك],غير_ذلك[رمز G/L],ملخص_المصاريف_الشهرية[[#This Row],[رمز G/L]],غير_ذلك[تاريخ تقديم طلب الشيك],\">=\"&DATEVALUE(\"1 \"&ملخص_المصاريف_الشهرية[[#Headers],[مارس]]&\" \"&_السنة),غير_ذلك[تاريخ تقديم طلب الشيك],\"<=\"&F$4)","v":{"v":0,"d":"ر.س.‏ 0.00"}},{"$f":"SUMIFS(المصاريف_المفصلة[مبلغ الشيك],المصاريف_المفصلة[رمز G/L],ملخص_المصاريف_الشهرية[[#This Row],[رمز G/L]],المصاريف_المفصلة[تاريخ الفاتورة],\">=\"&G$3,المصاريف_المفصلة[تاريخ الفاتورة],\"<=\"&G$4)+SUMIFS(غير_ذلك[مبلغ الشيك],غير_ذلك[رمز G/L],ملخص_المصاريف_الشهرية[[#This Row],[رمز G/L]],غير_ذلك[تاريخ تقديم طلب الشيك],\">=\"&DATEVALUE(\"1 \"&ملخص_المصاريف_الشهرية[[#Headers],[أبريل]]&\" \"&_السنة),غير_ذلك[تاريخ تقديم طلب الشيك],\"<=\"&G$4)","v":{"v":0,"d":"ر.س.‏ 0.00"}},{"$f":"SUMIFS(المصاريف_المفصلة[مبلغ الشيك],المصاريف_المفصلة[رمز G/L],ملخص_المصاريف_الشهرية[[#This Row],[رمز G/L]],المصاريف_المفصلة[تاريخ الفاتورة],\">=\"&H$3,المصاريف_المفصلة[تاريخ الفاتورة],\"<=\"&H$4)+SUMIFS(غير_ذلك[مبلغ الشيك],غير_ذلك[رمز G/L],ملخص_المصاريف_الشهرية[[#This Row],[رمز G/L]],غير_ذلك[تاريخ تقديم طلب الشيك],\">=\"&DATEVALUE(\"1 \"&ملخص_المصاريف_الشهرية[[#Headers],[مايو]]&\" \"&_السنة),غير_ذلك[تاريخ تقديم طلب الشيك],\"<=\"&H$4)","v":{"v":0,"d":"ر.س.‏ 0.00"}},{"$f":"SUMIFS(المصاريف_المفصلة[مبلغ الشيك],المصاريف_المفصلة[رمز G/L],ملخص_المصاريف_الشهرية[[#This Row],[رمز G/L]],المصاريف_المفصلة[تاريخ الفاتورة],\">=\"&I$3,المصاريف_المفصلة[تاريخ الفاتورة],\"<=\"&I$4)+SUMIFS(غير_ذلك[مبلغ الشيك],غير_ذلك[رمز G/L],ملخص_المصاريف_الشهرية[[#This Row],[رمز G/L]],غير_ذلك[تاريخ تقديم طلب الشيك],\">=\"&DATEVALUE(\"1 \"&ملخص_المصاريف_الشهرية[[#Headers],[يونيو]]&\" \"&_السنة),غير_ذلك[تاريخ تقديم طلب الشيك],\"<=\"&I$4)","v":{"v":0,"d":"ر.س.‏ 0.00"}},{"$f":"SUMIFS(المصاريف_المفصلة[مبلغ الشيك],المصاريف_المفصلة[رمز G/L],ملخص_المصاريف_الشهرية[[#This Row],[رمز G/L]],المصاريف_المفصلة[تاريخ الفاتورة],\">=\"&J$3,المصاريف_المفصلة[تاريخ الفاتورة],\"<=\"&J$4)+SUMIFS(غير_ذلك[مبلغ الشيك],غير_ذلك[رمز G/L],ملخص_المصاريف_الشهرية[[#This Row],[رمز G/L]],غير_ذلك[تاريخ تقديم طلب الشيك],\">=\"&DATEVALUE(\"1 \"&ملخص_المصاريف_الشهرية[[#Headers],[يوليو]]&\" \"&_السنة),غير_ذلك[تاريخ تقديم طلب الشيك],\"<=\"&J$4)","v":{"v":0,"d":"ر.س.‏ 0.00"}},{"$f":"SUMIFS(المصاريف_المفصلة[مبلغ الشيك],المصاريف_المفصلة[رمز G/L],ملخص_المصاريف_الشهرية[[#This Row],[رمز G/L]],المصاريف_المفصلة[تاريخ الفاتورة],\">=\"&K$3,المصاريف_المفصلة[تاريخ الفاتورة],\"<=\"&K$4)+SUMIFS(غير_ذلك[مبلغ الشيك],غير_ذلك[رمز G/L],ملخص_المصاريف_الشهرية[[#This Row],[رمز G/L]],غير_ذلك[تاريخ تقديم طلب الشيك],\">=\"&DATEVALUE(\"1 \"&ملخص_المصاريف_الشهرية[[#Headers],[أغسطس]]&\" \"&_السنة),غير_ذلك[تاريخ تقديم طلب الشيك],\"<=\"&K$4)","v":{"v":0,"d":"ر.س.‏ 0.00"}},{"$f":"SUMIFS(المصاريف_المفصلة[مبلغ الشيك],المصاريف_المفصلة[رمز G/L],ملخص_المصاريف_الشهرية[[#This Row],[رمز G/L]],المصاريف_المفصلة[تاريخ الفاتورة],\">=\"&L$3,المصاريف_المفصلة[تاريخ الفاتورة],\"<=\"&L$4)+SUMIFS(غير_ذلك[مبلغ الشيك],غير_ذلك[رمز G/L],ملخص_المصاريف_الشهرية[[#This Row],[رمز G/L]],غير_ذلك[تاريخ تقديم طلب الشيك],\">=\"&DATEVALUE(\"1 \"&ملخص_المصاريف_الشهرية[[#Headers],[سبتمبر]]&\" \"&_السنة),غير_ذلك[تاريخ تقديم طلب الشيك],\"<=\"&L$4)","v":{"v":0,"d":"ر.س.‏ 0.00"}},{"$f":"SUMIFS(المصاريف_المفصلة[مبلغ الشيك],المصاريف_المفصلة[رمز G/L],ملخص_المصاريف_الشهرية[[#This Row],[رمز G/L]],المصاريف_المفصلة[تاريخ الفاتورة],\">=\"&M$3,المصاريف_المفصلة[تاريخ الفاتورة],\"<=\"&M$4)+SUMIFS(غير_ذلك[مبلغ الشيك],غير_ذلك[رمز G/L],ملخص_المصاريف_الشهرية[[#This Row],[رمز G/L]],غير_ذلك[تاريخ تقديم طلب الشيك],\">=\"&DATEVALUE(\"1 \"&ملخص_المصاريف_الشهرية[[#Headers],[أكتوبر]]&\" \"&_السنة),غير_ذلك[تاريخ تقديم طلب الشيك],\"<=\"&M$4)","v":{"v":0,"d":"ر.س.‏ 0.00"}},{"$f":"SUMIFS(المصاريف_المفصلة[مبلغ الشيك],المصاريف_المفصلة[رمز G/L],ملخص_المصاريف_الشهرية[[#This Row],[رمز G/L]],المصاريف_المفصلة[تاريخ الفاتورة],\">=\"&N$3,المصاريف_المفصلة[تاريخ الفاتورة],\"<=\"&N$4)+SUMIFS(غير_ذلك[مبلغ الشيك],غير_ذلك[رمز G/L],ملخص_المصاريف_الشهرية[[#This Row],[رمز G/L]],غير_ذلك[تاريخ تقديم طلب الشيك],\">=\"&DATEVALUE(\"1 \"&ملخص_المصاريف_الشهرية[[#Headers],[نوفمبر]]&\" \"&_السنة),غير_ذلك[تاريخ تقديم طلب الشيك],\"<=\"&N$4)","v":{"v":0,"d":"ر.س.‏ 0.00"}},{"$f":"SUMIFS(المصاريف_المفصلة[مبلغ الشيك],المصاريف_المفصلة[رمز G/L],ملخص_المصاريف_الشهرية[[#This Row],[رمز G/L]],المصاريف_المفصلة[تاريخ الفاتورة],\">=\"&O$3,المصاريف_المفصلة[تاريخ الفاتورة],\"<=\"&O$4)+SUMIFS(غير_ذلك[مبلغ الشيك],غير_ذلك[رمز G/L],ملخص_المصاريف_الشهرية[[#This Row],[رمز G/L]],غير_ذلك[تاريخ تقديم طلب الشيك],\">=\"&DATEVALUE(\"1 \"&ملخص_المصاريف_الشهرية[[#Headers],[ديسمبر]]&\" \"&_السنة),غير_ذلك[تاريخ تقديم طلب الشيك],\"<=\"&O$4)","v":{"v":0,"d":"ر.س.‏ 0.00"}},{"$f":"SUM(ملخص_المصاريف_الشهرية[[#This Row],[يناير]:[ديسمبر]])","v":{"v":0,"d":"ر.س.‏ 0.00"}}]
[null,6000,"مصاريف العميل",{"$f":"SUMIFS(المصاريف_المفصلة[مبلغ الشيك],المصاريف_المفصلة[رمز G/L],ملخص_المصاريف_الشهرية[[#This Row],[رمز G/L]],المصاريف_المفصلة[تاريخ الفاتورة],\">=\"&D$3,المصاريف_المفصلة[تاريخ الفاتورة],\"<=\"&D$4)+SUMIFS(غير_ذلك[مبلغ الشيك],غير_ذلك[رمز G/L],ملخص_المصاريف_الشهرية[[#This Row],[رمز G/L]],غير_ذلك[تاريخ تقديم طلب الشيك],\">=\"&DATEVALUE(\"1 \"&ملخص_المصاريف_الشهرية[[#Headers],[يناير]]&\" \"&_السنة),غير_ذلك[تاريخ تقديم طلب الشيك],\"<=\"&D$4)","v":{"v":0,"d":"ر.س.‏ 0.00"}},{"$f":"SUMIFS(المصاريف_المفصلة[مبلغ الشيك],المصاريف_المفصلة[رمز G/L],ملخص_المصاريف_الشهرية[[#This Row],[رمز G/L]],المصاريف_المفصلة[تاريخ الفاتورة],\">=\"&E$3,المصاريف_المفصلة[تاريخ الفاتورة],\"<=\"&E$4)+SUMIFS(غير_ذلك[مبلغ الشيك],غير_ذلك[رمز G/L],ملخص_المصاريف_الشهرية[[#This Row],[رمز G/L]],غير_ذلك[تاريخ تقديم طلب الشيك],\">=\"&DATEVALUE(\"1 \"&ملخص_المصاريف_الشهرية[[#Headers],[فبراير]]&\" \"&_السنة),غير_ذلك[تاريخ تقديم طلب الشيك],\"<=\"&E$4)","v":{"v":0,"d":"ر.س.‏ 0.00"}},{"$f":"SUMIFS(المصاريف_المفصلة[مبلغ الشيك],المصاريف_المفصلة[رمز G/L],ملخص_المصاريف_الشهرية[[#This Row],[رمز G/L]],المصاريف_المفصلة[تاريخ الفاتورة],\">=\"&F$3,المصاريف_المفصلة[تاريخ الفاتورة],\"<=\"&F$4)+SUMIFS(غير_ذلك[مبلغ الشيك],غير_ذلك[رمز G/L],ملخص_المصاريف_الشهرية[[#This Row],[رمز G/L]],غير_ذلك[تاريخ تقديم طلب الشيك],\">=\"&DATEVALUE(\"1 \"&ملخص_المصاريف_الشهرية[[#Headers],[مارس]]&\" \"&_السنة),غير_ذلك[تاريخ تقديم طلب الشيك],\"<=\"&F$4)","v":{"v":0,"d":"ر.س.‏ 0.00"}},{"$f":"SUMIFS(المصاريف_المفصلة[مبلغ الشيك],المصاريف_المفصلة[رمز G/L],ملخص_المصاريف_الشهرية[[#This Row],[رمز G/L]],المصاريف_المفصلة[تاريخ الفاتورة],\">=\"&G$3,المصاريف_المفصلة[تاريخ الفاتورة],\"<=\"&G$4)+SUMIFS(غير_ذلك[مبلغ الشيك],غير_ذلك[رمز G/L],ملخص_المصاريف_الشهرية[[#This Row],[رمز G/L]],غير_ذلك[تاريخ تقديم طلب الشيك],\">=\"&DATEVALUE(\"1 \"&ملخص_المصاريف_الشهرية[[#Headers],[أبريل]]&\" \"&_السنة),غير_ذلك[تاريخ تقديم طلب الشيك],\"<=\"&G$4)","v":{"v":0,"d":"ر.س.‏ 0.00"}},{"$f":"SUMIFS(المصاريف_المفصلة[مبلغ الشيك],المصاريف_المفصلة[رمز G/L],ملخص_المصاريف_الشهرية[[#This Row],[رمز G/L]],المصاريف_المفصلة[تاريخ الفاتورة],\">=\"&H$3,المصاريف_المفصلة[تاريخ الفاتورة],\"<=\"&H$4)+SUMIFS(غير_ذلك[مبلغ الشيك],غير_ذلك[رمز G/L],ملخص_المصاريف_الشهرية[[#This Row],[رمز G/L]],غير_ذلك[تاريخ تقديم طلب الشيك],\">=\"&DATEVALUE(\"1 \"&ملخص_المصاريف_الشهرية[[#Headers],[مايو]]&\" \"&_السنة),غير_ذلك[تاريخ تقديم طلب الشيك],\"<=\"&H$4)","v":{"v":0,"d":"ر.س.‏ 0.00"}},{"$f":"SUMIFS(المصاريف_المفصلة[مبلغ الشيك],المصاريف_المفصلة[رمز G/L],ملخص_المصاريف_الشهرية[[#This Row],[رمز G/L]],المصاريف_المفصلة[تاريخ الفاتورة],\">=\"&I$3,المصاريف_المفصلة[تاريخ الفاتورة],\"<=\"&I$4)+SUMIFS(غير_ذلك[مبلغ الشيك],غير_ذلك[رمز G/L],ملخص_المصاريف_الشهرية[[#This Row],[رمز G/L]],غير_ذلك[تاريخ تقديم طلب الشيك],\">=\"&DATEVALUE(\"1 \"&ملخص_المصاريف_الشهرية[[#Headers],[يونيو]]&\" \"&_السنة),غير_ذلك[تاريخ تقديم طلب الشيك],\"<=\"&I$4)","v":{"v":0,"d":"ر.س.‏ 0.00"}},{"$f":"SUMIFS(المصاريف_المفصلة[مبلغ الشيك],المصاريف_المفصلة[رمز G/L],ملخص_المصاريف_الشهرية[[#This Row],[رمز G/L]],المصاريف_المفصلة[تاريخ الفاتورة],\">=\"&J$3,المصاريف_المفصلة[تاريخ الفاتورة],\"<=\"&J$4)+SUMIFS(غير_ذلك[مبلغ الشيك],غير_ذلك[رمز G/L],ملخص_المصاريف_الشهرية[[#This Row],[رمز G/L]],غير_ذلك[تاريخ تقديم طلب الشيك],\">=\"&DATEVALUE(\"1 \"&ملخص_المصاريف_الشهرية[[#Headers],[يوليو]]&\" \"&_السنة),غير_ذلك[تاريخ تقديم طلب الشيك],\"<=\"&J$4)","v":{"v":0,"d":"ر.س.‏ 0.00"}},{"$f":"SUMIFS(المصاريف_المفصلة[مبلغ الشيك],المصاريف_المفصلة[رمز G/L],ملخص_المصاريف_الشهرية[[#This Row],[رمز G/L]],المصاريف_المفصلة[تاريخ الفاتورة],\">=\"&K$3,المصاريف_المفصلة[تاريخ الفاتورة],\"<=\"&K$4)+SUMIFS(غير_ذلك[مبلغ الشيك],غير_ذلك[رمز G/L],ملخص_المصاريف_الشهرية[[#This Row],[رمز G/L]],غير_ذلك[تاريخ تقديم طلب الشيك],\">=\"&DATEVALUE(\"1 \"&ملخص_المصاريف_الشهرية[[#Headers],[أغسطس]]&\" \"&_السنة),غير_ذلك[تاريخ تقديم طلب الشيك],\"<=\"&K$4)","v":{"v":0,"d":"ر.س.‏ 0.00"}},{"$f":"SUMIFS(المصاريف_المفصلة[مبلغ الشيك],المصاريف_المفصلة[رمز G/L],ملخص_المصاريف_الشهرية[[#This Row],[رمز G/L]],المصاريف_المفصلة[تاريخ الفاتورة],\">=\"&L$3,المصاريف_المفصلة[تاريخ الفاتورة],\"<=\"&L$4)+SUMIFS(غير_ذلك[مبلغ الشيك],غير_ذلك[رمز G/L],ملخص_المصاريف_الشهرية[[#This Row],[رمز G/L]],غير_ذلك[تاريخ تقديم طلب الشيك],\">=\"&DATEVALUE(\"1 \"&ملخص_المصاريف_الشهرية[[#Headers],[سبتمبر]]&\" \"&_السنة),غير_ذلك[تاريخ تقديم طلب الشيك],\"<=\"&L$4)","v":{"v":0,"d":"ر.س.‏ 0.00"}},{"$f":"SUMIFS(المصاريف_المفصلة[مبلغ الشيك],المصاريف_المفصلة[رمز G/L],ملخص_المصاريف_الشهرية[[#This Row],[رمز G/L]],المصاريف_المفصلة[تاريخ الفاتورة],\">=\"&M$3,المصاريف_المفصلة[تاريخ الفاتورة],\"<=\"&M$4)+SUMIFS(غير_ذلك[مبلغ الشيك],غير_ذلك[رمز G/L],ملخص_المصاريف_الشهرية[[#This Row],[رمز G/L]],غير_ذلك[تاريخ تقديم طلب الشيك],\">=\"&DATEVALUE(\"1 \"&ملخص_المصاريف_الشهرية[[#Headers],[أكتوبر]]&\" \"&_السنة),غير_ذلك[تاريخ تقديم طلب الشيك],\"<=\"&M$4)","v":{"v":0,"d":"ر.س.‏ 0.00"}},{"$f":"SUMIFS(المصاريف_المفصلة[مبلغ الشيك],المصاريف_المفصلة[رمز G/L],ملخص_المصاريف_الشهرية[[#This Row],[رمز G/L]],المصاريف_المفصلة[تاريخ الفاتورة],\">=\"&N$3,المصاريف_المفصلة[تاريخ الفاتورة],\"<=\"&N$4)+SUMIFS(غير_ذلك[مبلغ الشيك],غير_ذلك[رمز G/L],ملخص_المصاريف_الشهرية[[#This Row],[رمز G/L]],غير_ذلك[تاريخ تقديم طلب الشيك],\">=\"&DATEVALUE(\"1 \"&ملخص_المصاريف_الشهرية[[#Headers],[نوفمبر]]&\" \"&_السنة),غير_ذلك[تاريخ تقديم طلب الشيك],\"<=\"&N$4)","v":{"v":0,"d":"ر.س.‏ 0.00"}},{"$f":"SUMIFS(المصاريف_المفصلة[مبلغ الشيك],المصاريف_المفصلة[رمز G/L],ملخص_المصاريف_الشهرية[[#This Row],[رمز G/L]],المصاريف_المفصلة[تاريخ الفاتورة],\">=\"&O$3,المصاريف_المفصلة[تاريخ الفاتورة],\"<=\"&O$4)+SUMIFS(غير_ذلك[مبلغ الشيك],غير_ذلك[رمز G/L],ملخص_المصاريف_الشهرية[[#This Row],[رمز G/L]],غير_ذلك[تاريخ تقديم طلب الشيك],\">=\"&DATEVALUE(\"1 \"&ملخص_المصاريف_الشهرية[[#Headers],[ديسمبر]]&\" \"&_السنة),غير_ذلك[تاريخ تقديم طلب الشيك],\"<=\"&O$4)","v":{"v":0,"d":"ر.س.‏ 0.00"}},{"$f":"SUM(ملخص_المصاريف_الشهرية[[#This Row],[يناير]:[ديسمبر]])","v":{"v":0,"d":"ر.س.‏ 0.00"}}]
[null,7000,"أجهزة الكمبيوتر",{"$f":"SUMIFS(المصاريف_المفصلة[مبلغ الشيك],المصاريف_المفصلة[رمز G/L],ملخص_المصاريف_الشهرية[[#This Row],[رمز G/L]],المصاريف_المفصلة[تاريخ الفاتورة],\">=\"&D$3,المصاريف_المفصلة[تاريخ الفاتورة],\"<=\"&D$4)+SUMIFS(غير_ذلك[مبلغ الشيك],غير_ذلك[رمز G/L],ملخص_المصاريف_الشهرية[[#This Row],[رمز G/L]],غير_ذلك[تاريخ تقديم طلب الشيك],\">=\"&DATEVALUE(\"1 \"&ملخص_المصاريف_الشهرية[[#Headers],[يناير]]&\" \"&_السنة),غير_ذلك[تاريخ تقديم طلب الشيك],\"<=\"&D$4)","v":{"v":0,"d":"ر.س.‏ 0.00"}},{"$f":"SUMIFS(المصاريف_المفصلة[مبلغ الشيك],المصاريف_المفصلة[رمز G/L],ملخص_المصاريف_الشهرية[[#This Row],[رمز G/L]],المصاريف_المفصلة[تاريخ الفاتورة],\">=\"&E$3,المصاريف_المفصلة[تاريخ الفاتورة],\"<=\"&E$4)+SUMIFS(غير_ذلك[مبلغ الشيك],غير_ذلك[رمز G/L],ملخص_المصاريف_الشهرية[[#This Row],[رمز G/L]],غير_ذلك[تاريخ تقديم طلب الشيك],\">=\"&DATEVALUE(\"1 \"&ملخص_المصاريف_الشهرية[[#Headers],[فبراير]]&\" \"&_السنة),غير_ذلك[تاريخ تقديم طلب الشيك],\"<=\"&E$4)","v":{"v":0,"d":"ر.س.‏ 0.00"}},{"$f":"SUMIFS(المصاريف_المفصلة[مبلغ الشيك],المصاريف_المفصلة[رمز G/L],ملخص_المصاريف_الشهرية[[#This Row],[رمز G/L]],المصاريف_المفصلة[تاريخ الفاتورة],\">=\"&F$3,المصاريف_المفصلة[تاريخ الفاتورة],\"<=\"&F$4)+SUMIFS(غير_ذلك[مبلغ الشيك],غير_ذلك[رمز G/L],ملخص_المصاريف_الشهرية[[#This Row],[رمز G/L]],غير_ذلك[تاريخ تقديم طلب الشيك],\">=\"&DATEVALUE(\"1 \"&ملخص_المصاريف_الشهرية[[#Headers],[مارس]]&\" \"&_السنة),غير_ذلك[تاريخ تقديم طلب الشيك],\"<=\"&F$4)","v":{"v":0,"d":"ر.س.‏ 0.00"}},{"$f":"SUMIFS(المصاريف_المفصلة[مبلغ الشيك],المصاريف_المفصلة[رمز G/L],ملخص_المصاريف_الشهرية[[#This Row],[رمز G/L]],المصاريف_المفصلة[تاريخ الفاتورة],\">=\"&G$3,المصاريف_المفصلة[تاريخ الفاتورة],\"<=\"&G$4)+SUMIFS(غير_ذلك[مبلغ الشيك],غير_ذلك[رمز G/L],ملخص_المصاريف_الشهرية[[#This Row],[رمز G/L]],غير_ذلك[تاريخ تقديم طلب الشيك],\">=\"&DATEVALUE(\"1 \"&ملخص_المصاريف_الشهرية[[#Headers],[أبريل]]&\" \"&_السنة),غير_ذلك[تاريخ تقديم طلب الشيك],\"<=\"&G$4)","v":{"v":0,"d":"ر.س.‏ 0.00"}},{"$f":"SUMIFS(المصاريف_المفصلة[مبلغ الشيك],المصاريف_المفصلة[رمز G/L],ملخص_المصاريف_الشهرية[[#This Row],[رمز G/L]],المصاريف_المفصلة[تاريخ الفاتورة],\">=\"&H$3,المصاريف_المفصلة[تاريخ الفاتورة],\"<=\"&H$4)+SUMIFS(غير_ذلك[مبلغ الشيك],غير_ذلك[رمز G/L],ملخص_المصاريف_الشهرية[[#This Row],[رمز G/L]],غير_ذلك[تاريخ تقديم طلب الشيك],\">=\"&DATEVALUE(\"1 \"&ملخص_المصاريف_الشهرية[[#Headers],[مايو]]&\" \"&_السنة),غير_ذلك[تاريخ تقديم طلب الشيك],\"<=\"&H$4)","v":{"v":0,"d":"ر.س.‏ 0.00"}},{"$f":"SUMIFS(المصاريف_المفصلة[مبلغ الشيك],المصاريف_المفصلة[رمز G/L],ملخص_المصاريف_الشهرية[[#This Row],[رمز G/L]],المصاريف_المفصلة[تاريخ الفاتورة],\">=\"&I$3,المصاريف_المفصلة[تاريخ الفاتورة],\"<=\"&I$4)+SUMIFS(غير_ذلك[مبلغ الشيك],غير_ذلك[رمز G/L],ملخص_المصاريف_الشهرية[[#This Row],[رمز G/L]],غير_ذلك[تاريخ تقديم طلب الشيك],\">=\"&DATEVALUE(\"1 \"&ملخص_المصاريف_الشهرية[[#Headers],[يونيو]]&\" \"&_السنة),غير_ذلك[تاريخ تقديم طلب الشيك],\"<=\"&I$4)","v":{"v":0,"d":"ر.س.‏ 0.00"}},{"$f":"SUMIFS(المصاريف_المفصلة[مبلغ الشيك],المصاريف_المفصلة[رمز G/L],ملخص_المصاريف_الشهرية[[#This Row],[رمز G/L]],المصاريف_المفصلة[تاريخ الفاتورة],\">=\"&J$3,المصاريف_المفصلة[تاريخ الفاتورة],\"<=\"&J$4)+SUMIFS(غير_ذلك[مبلغ الشيك],غير_ذلك[رمز G/L],ملخص_المصاريف_الشهرية[[#This Row],[رمز G/L]],غير_ذلك[تاريخ تقديم طلب الشيك],\">=\"&DATEVALUE(\"1 \"&ملخص_المصاريف_الشهرية[[#Headers],[يوليو]]&\" \"&_السنة),غير_ذلك[تاريخ تقديم طلب الشيك],\"<=\"&J$4)","v":{"v":0,"d":"ر.س.‏ 0.00"}},{"$f":"SUMIFS(المصاريف_المفصلة[مبلغ الشيك],المصاريف_المفصلة[رمز G/L],ملخص_المصاريف_الشهرية[[#This Row],[رمز G/L]],المصاريف_المفصلة[تاريخ الفاتورة],\">=\"&K$3,المصاريف_المفصلة[تاريخ الفاتورة],\"<=\"&K$4)+SUMIFS(غير_ذلك[مبلغ الشيك],غير_ذلك[رمز G/L],ملخص_المصاريف_الشهرية[[#This Row],[رمز G/L]],غير_ذلك[تاريخ تقديم طلب الشيك],\">=\"&DATEVALUE(\"1 \"&ملخص_المصاريف_الشهرية[[#Headers],[أغسطس]]&\" \"&_السنة),غير_ذلك[تاريخ تقديم طلب الشيك],\"<=\"&K$4)","v":{"v":0,"d":"ر.س.‏ 0.00"}},{"$f":"SUMIFS(المصاريف_المفصلة[مبلغ الشيك],المصاريف_المفصلة[رمز G/L],ملخص_المصاريف_الشهرية[[#This Row],[رمز G/L]],المصاريف_المفصلة[تاريخ الفاتورة],\">=\"&L$3,المصاريف_المفصلة[تاريخ الفاتورة],\"<=\"&L$4)+SUMIFS(غير_ذلك[مبلغ الشيك],غير_ذلك[رمز G/L],ملخص_المصاريف_الشهرية[[#This Row],[رمز G/L]],غير_ذلك[تاريخ تقديم طلب الشيك],\">=\"&DATEVALUE(\"1 \"&ملخص_المصاريف_الشهرية[[#Headers],[سبتمبر]]&\" \"&_السنة),غير_ذلك[تاريخ تقديم طلب الشيك],\"<=\"&L$4)","v":{"v":0,"d":"ر.س.‏ 0.00"}},{"$f":"SUMIFS(المصاريف_المفصلة[مبلغ الشيك],المصاريف_المفصلة[رمز G/L],ملخص_المصاريف_الشهرية[[#This Row],[رمز G/L]],المصاريف_المفصلة[تاريخ الفاتورة],\">=\"&M$3,المصاريف_المفصلة[تاريخ الفاتورة],\"<=\"&M$4)+SUMIFS(غير_ذلك[مبلغ الشيك],غير_ذلك[رمز G/L],ملخص_المصاريف_الشهرية[[#This Row],[رمز G/L]],غير_ذلك[تاريخ تقديم طلب الشيك],\">=\"&DATEVALUE(\"1 \"&ملخص_المصاريف_الشهرية[[#Headers],[أكتوبر]]&\" \"&_السنة),غير_ذلك[تاريخ تقديم طلب الشيك],\"<=\"&M$4)","v":{"v":0,"d":"ر.س.‏ 0.00"}},{"$f":"SUMIFS(المصاريف_المفصلة[مبلغ الشيك],المصاريف_المفصلة[رمز G/L],ملخص_المصاريف_الشهرية[[#This Row],[رمز G/L]],المصاريف_المفصلة[تاريخ الفاتورة],\">=\"&N$3,المصاريف_المفصلة[تاريخ الفاتورة],\"<=\"&N$4)+SUMIFS(غير_ذلك[مبلغ الشيك],غير_ذلك[رمز G/L],ملخص_المصاريف_الشهرية[[#This Row],[رمز G/L]],غير_ذلك[تاريخ تقديم طلب الشيك],\">=\"&DATEVALUE(\"1 \"&ملخص_المصاريف_الشهرية[[#Headers],[نوفمبر]]&\" \"&_السنة),غير_ذلك[تاريخ تقديم طلب الشيك],\"<=\"&N$4)","v":{"v":0,"d":"ر.س.‏ 0.00"}},{"$f":"SUMIFS(المصاريف_المفصلة[مبلغ الشيك],المصاريف_المفصلة[رمز G/L],ملخص_المصاريف_الشهرية[[#This Row],[رمز G/L]],المصاريف_المفصلة[تاريخ الفاتورة],\">=\"&O$3,المصاريف_المفصلة[تاريخ الفاتورة],\"<=\"&O$4)+SUMIFS(غير_ذلك[مبلغ الشيك],غير_ذلك[رمز G/L],ملخص_المصاريف_الشهرية[[#This Row],[رمز G/L]],غير_ذلك[تاريخ تقديم طلب الشيك],\">=\"&DATEVALUE(\"1 \"&ملخص_المصاريف_الشهرية[[#Headers],[ديسمبر]]&\" \"&_السنة),غير_ذلك[تاريخ تقديم طلب الشيك],\"<=\"&O$4)","v":{"v":0,"d":"ر.س.‏ 0.00"}},{"$f":"SUM(ملخص_المصاريف_الشهرية[[#This Row],[يناير]:[ديسمبر]])","v":{"v":0,"d":"ر.س.‏ 0.00"}}]
[null,8000,"الخطة الطبية",{"$f":"SUMIFS(المصاريف_المفصلة[مبلغ الشيك],المصاريف_المفصلة[رمز G/L],ملخص_المصاريف_الشهرية[[#This Row],[رمز G/L]],المصاريف_المفصلة[تاريخ الفاتورة],\">=\"&D$3,المصاريف_المفصلة[تاريخ الفاتورة],\"<=\"&D$4)+SUMIFS(غير_ذلك[مبلغ الشيك],غير_ذلك[رمز G/L],ملخص_المصاريف_الشهرية[[#This Row],[رمز G/L]],غير_ذلك[تاريخ تقديم طلب الشيك],\">=\"&DATEVALUE(\"1 \"&ملخص_المصاريف_الشهرية[[#Headers],[يناير]]&\" \"&_السنة),غير_ذلك[تاريخ تقديم طلب الشيك],\"<=\"&D$4)","v":{"v":0,"d":"ر.س.‏ 0.00"}},{"$f":"SUMIFS(المصاريف_المفصلة[مبلغ الشيك],المصاريف_المفصلة[رمز G/L],ملخص_المصاريف_الشهرية[[#This Row],[رمز G/L]],المصاريف_المفصلة[تاريخ الفاتورة],\">=\"&E$3,المصاريف_المفصلة[تاريخ الفاتورة],\"<=\"&E$4)+SUMIFS(غير_ذلك[مبلغ الشيك],غير_ذلك[رمز G/L],ملخص_المصاريف_الشهرية[[#This Row],[رمز G/L]],غير_ذلك[تاريخ تقديم طلب الشيك],\">=\"&DATEVALUE(\"1 \"&ملخص_المصاريف_الشهرية[[#Headers],[فبراير]]&\" \"&_السنة),غير_ذلك[تاريخ تقديم طلب الشيك],\"<=\"&E$4)","v":{"v":0,"d":"ر.س.‏ 0.00"}},{"$f":"SUMIFS(المصاريف_المفصلة[مبلغ الشيك],المصاريف_المفصلة[رمز G/L],ملخص_المصاريف_الشهرية[[#This Row],[رمز G/L]],المصاريف_المفصلة[تاريخ الفاتورة],\">=\"&F$3,المصاريف_المفصلة[تاريخ الفاتورة],\"<=\"&F$4)+SUMIFS(غير_ذلك[مبلغ الشيك],غير_ذلك[رمز G/L],ملخص_المصاريف_الشهرية[[#This Row],[رمز G/L]],غير_ذلك[تاريخ تقديم طلب الشيك],\">=\"&DATEVALUE(\"1 \"&ملخص_المصاريف_الشهرية[[#Headers],[مارس]]&\" \"&_السنة),غير_ذلك[تاريخ تقديم طلب الشيك],\"<=\"&F$4)","v":{"v":0,"d":"ر.س.‏ 0.00"}},{"$f":"SUMIFS(المصاريف_المفصلة[مبلغ الشيك],المصاريف_المفصلة[رمز G/L],ملخص_المصاريف_الشهرية[[#This Row],[رمز G/L]],المصاريف_المفصلة[تاريخ الفاتورة],\">=\"&G$3,المصاريف_المفصلة[تاريخ الفاتورة],\"<=\"&G$4)+SUMIFS(غير_ذلك[مبلغ الشيك],غير_ذلك[رمز G/L],ملخص_المصاريف_الشهرية[[#This Row],[رمز G/L]],غير_ذلك[تاريخ تقديم طلب الشيك],\">=\"&DATEVALUE(\"1 \"&ملخص_المصاريف_الشهرية[[#Headers],[أبريل]]&\" \"&_السنة),غير_ذلك[تاريخ تقديم طلب الشيك],\"<=\"&G$4)","v":{"v":0,"d":"ر.س.‏ 0.00"}},{"$f":"SUMIFS(المصاريف_المفصلة[مبلغ الشيك],المصاريف_المفصلة[رمز G/L],ملخص_المصاريف_الشهرية[[#This Row],[رمز G/L]],المصاريف_المفصلة[تاريخ الفاتورة],\">=\"&H$3,المصاريف_المفصلة[تاريخ الفاتورة],\"<=\"&H$4)+SUMIFS(غير_ذلك[مبلغ الشيك],غير_ذلك[رمز G/L],ملخص_المصاريف_الشهرية[[#This Row],[رمز G/L]],غير_ذلك[تاريخ تقديم طلب الشيك],\">=\"&DATEVALUE(\"1 \"&ملخص_المصاريف_الشهرية[[#Headers],[مايو]]&\" \"&_السنة),غير_ذلك[تاريخ تقديم طلب الشيك],\"<=\"&H$4)","v":{"v":0,"d":"ر.س.‏ 0.00"}},{"$f":"SUMIFS(المصاريف_المفصلة[مبلغ الشيك],المصاريف_المفصلة[رمز G/L],ملخص_المصاريف_الشهرية[[#This Row],[رمز G/L]],المصاريف_المفصلة[تاريخ الفاتورة],\">=\"&I$3,المصاريف_المفصلة[تاريخ الفاتورة],\"<=\"&I$4)+SUMIFS(غير_ذلك[مبلغ الشيك],غير_ذلك[رمز G/L],ملخص_المصاريف_الشهرية[[#This Row],[رمز G/L]],غير_ذلك[تاريخ تقديم طلب الشيك],\">=\"&DATEVALUE(\"1 \"&ملخص_المصاريف_الشهرية[[#Headers],[يونيو]]&\" \"&_السنة),غير_ذلك[تاريخ تقديم طلب الشيك],\"<=\"&I$4)","v":{"v":0,"d":"ر.س.‏ 0.00"}},{"$f":"SUMIFS(المصاريف_المفصلة[مبلغ الشيك],المصاريف_المفصلة[رمز G/L],ملخص_المصاريف_الشهرية[[#This Row],[رمز G/L]],المصاريف_المفصلة[تاريخ الفاتورة],\">=\"&J$3,المصاريف_المفصلة[تاريخ الفاتورة],\"<=\"&J$4)+SUMIFS(غير_ذلك[مبلغ الشيك],غير_ذلك[رمز G/L],ملخص_المصاريف_الشهرية[[#This Row],[رمز G/L]],غير_ذلك[تاريخ تقديم طلب الشيك],\">=\"&DATEVALUE(\"1 \"&ملخص_المصاريف_الشهرية[[#Headers],[يوليو]]&\" \"&_السنة),غير_ذلك[تاريخ تقديم طلب الشيك],\"<=\"&J$4)","v":{"v":0,"d":"ر.س.‏ 0.00"}},{"$f":"SUMIFS(المصاريف_المفصلة[مبلغ الشيك],المصاريف_المفصلة[رمز G/L],ملخص_المصاريف_الشهرية[[#This Row],[رمز G/L]],المصاريف_المفصلة[تاريخ الفاتورة],\">=\"&K$3,المصاريف_المفصلة[تاريخ الفاتورة],\"<=\"&K$4)+SUMIFS(غير_ذلك[مبلغ الشيك],غير_ذلك[رمز G/L],ملخص_المصاريف_الشهرية[[#This Row],[رمز G/L]],غير_ذلك[تاريخ تقديم طلب الشيك],\">=\"&DATEVALUE(\"1 \"&ملخص_المصاريف_الشهرية[[#Headers],[أغسطس]]&\" \"&_السنة),غير_ذلك[تاريخ تقديم طلب الشيك],\"<=\"&K$4)","v":{"v":0,"d":"ر.س.‏ 0.00"}},{"$f":"SUMIFS(المصاريف_المفصلة[مبلغ الشيك],المصاريف_المفصلة[رمز G/L],ملخص_المصاريف_الشهرية[[#This Row],[رمز G/L]],المصاريف_المفصلة[تاريخ الفاتورة],\">=\"&L$3,المصاريف_المفصلة[تاريخ الفاتورة],\"<=\"&L$4)+SUMIFS(غير_ذلك[مبلغ الشيك],غير_ذلك[رمز G/L],ملخص_المصاريف_الشهرية[[#This Row],[رمز G/L]],غير_ذلك[تاريخ تقديم طلب الشيك],\">=\"&DATEVALUE(\"1 \"&ملخص_المصاريف_الشهرية[[#Headers],[سبتمبر]]&\" \"&_السنة),غير_ذلك[تاريخ تقديم طلب الشيك],\"<=\"&L$4)","v":{"v":0,"d":"ر.س.‏ 0.00"}},{"$f":"SUMIFS(المصاريف_المفصلة[مبلغ الشيك],المصاريف_المفصلة[رمز G/L],ملخص_المصاريف_الشهرية[[#This Row],[رمز G/L]],المصاريف_المفصلة[تاريخ الفاتورة],\">=\"&M$3,المصاريف_المفصلة[تاريخ الفاتورة],\"<=\"&M$4)+SUMIFS(غير_ذلك[مبلغ الشيك],غير_ذلك[رمز G/L],ملخص_المصاريف_الشهرية[[#This Row],[رمز G/L]],غير_ذلك[تاريخ تقديم طلب الشيك],\">=\"&DATEVALUE(\"1 \"&ملخص_المصاريف_الشهرية[[#Headers],[أكتوبر]]&\" \"&_السنة),غير_ذلك[تاريخ تقديم طلب الشيك],\"<=\"&M$4)","v":{"v":0,"d":"ر.س.‏ 0.00"}},{"$f":"SUMIFS(المصاريف_المفصلة[مبلغ الشيك],المصاريف_المفصلة[رمز G/L],ملخص_المصاريف_الشهرية[[#This Row],[رمز G/L]],المصاريف_المفصلة[تاريخ الفاتورة],\">=\"&N$3,المصاريف_المفصلة[تاريخ الفاتورة],\"<=\"&N$4)+SUMIFS(غير_ذلك[مبلغ الشيك],غير_ذلك[رمز G/L],ملخص_المصاريف_الشهرية[[#This Row],[رمز G/L]],غير_ذلك[تاريخ تقديم طلب الشيك],\">=\"&DATEVALUE(\"1 \"&ملخص_المصاريف_الشهرية[[#Headers],[نوفمبر]]&\" \"&_السنة),غير_ذلك[تاريخ تقديم طلب الشيك],\"<=\"&N$4)","v":{"v":0,"d":"ر.س.‏ 0.00"}},{"$f":"SUMIFS(المصاريف_المفصلة[مبلغ الشيك],المصاريف_المفصلة[رمز G/L],ملخص_المصاريف_الشهرية[[#This Row],[رمز G/L]],المصاريف_المفصلة[تاريخ الفاتورة],\">=\"&O$3,المصاريف_المفصلة[تاريخ الفاتورة],\"<=\"&O$4)+SUMIFS(غير_ذلك[مبلغ الشيك],غير_ذلك[رمز G/L],ملخص_المصاريف_الشهرية[[#This Row],[رمز G/L]],غير_ذلك[تاريخ تقديم طلب الشيك],\">=\"&DATEVALUE(\"1 \"&ملخص_المصاريف_الشهرية[[#Headers],[ديسمبر]]&\" \"&_السنة),غير_ذلك[تاريخ تقديم طلب الشيك],\"<=\"&O$4)","v":{"v":0,"d":"ر.س.‏ 0.00"}},{"$f":"SUM(ملخص_المصاريف_الشهرية[[#This Row],[يناير]:[ديسمبر]])","v":{"v":0,"d":"ر.س.‏ 0.00"}}]
[null,9000,"تكاليف الإنشاء",{"$f":"SUMIFS(المصاريف_المفصلة[مبلغ الشيك],المصاريف_المفصلة[رمز G/L],ملخص_المصاريف_الشهرية[[#This Row],[رمز G/L]],المصاريف_المفصلة[تاريخ الفاتورة],\">=\"&D$3,المصاريف_المفصلة[تاريخ الفاتورة],\"<=\"&D$4)+SUMIFS(غير_ذلك[مبلغ الشيك],غير_ذلك[رمز G/L],ملخص_المصاريف_الشهرية[[#This Row],[رمز G/L]],غير_ذلك[تاريخ تقديم طلب الشيك],\">=\"&DATEVALUE(\"1 \"&ملخص_المصاريف_الشهرية[[#Headers],[يناير]]&\" \"&_السنة),غير_ذلك[تاريخ تقديم طلب الشيك],\"<=\"&D$4)","v":{"v":0,"d":"ر.س.‏ 0.00"}},{"$f":"SUMIFS(المصاريف_المفصلة[مبلغ الشيك],المصاريف_المفصلة[رمز G/L],ملخص_المصاريف_الشهرية[[#This Row],[رمز G/L]],المصاريف_المفصلة[تاريخ الفاتورة],\">=\"&E$3,المصاريف_المفصلة[تاريخ الفاتورة],\"<=\"&E$4)+SUMIFS(غير_ذلك[مبلغ الشيك],غير_ذلك[رمز G/L],ملخص_المصاريف_الشهرية[[#This Row],[رمز G/L]],غير_ذلك[تاريخ تقديم طلب الشيك],\">=\"&DATEVALUE(\"1 \"&ملخص_المصاريف_الشهرية[[#Headers],[فبراير]]&\" \"&_السنة),غير_ذلك[تاريخ تقديم طلب الشيك],\"<=\"&E$4)","v":{"v":0,"d":"ر.س.‏ 0.00"}},{"$f":"SUMIFS(المصاريف_المفصلة[مبلغ الشيك],المصاريف_المفصلة[رمز G/L],ملخص_المصاريف_الشهرية[[#This Row],[رمز G/L]],المصاريف_المفصلة[تاريخ الفاتورة],\">=\"&F$3,المصاريف_المفصلة[تاريخ الفاتورة],\"<=\"&F$4)+SUMIFS(غير_ذلك[مبلغ الشيك],غير_ذلك[رمز G/L],ملخص_المصاريف_الشهرية[[#This Row],[رمز G/L]],غير_ذلك[تاريخ تقديم طلب الشيك],\">=\"&DATEVALUE(\"1 \"&ملخص_المصاريف_الشهرية[[#Headers],[مارس]]&\" \"&_السنة),غير_ذلك[تاريخ تقديم طلب الشيك],\"<=\"&F$4)","v":{"v":0,"d":"ر.س.‏ 0.00"}},{"$f":"SUMIFS(المصاريف_المفصلة[مبلغ الشيك],المصاريف_المفصلة[رمز G/L],ملخص_المصاريف_الشهرية[[#This Row],[رمز G/L]],المصاريف_المفصلة[تاريخ الفاتورة],\">=\"&G$3,المصاريف_المفصلة[تاريخ الفاتورة],\"<=\"&G$4)+SUMIFS(غير_ذلك[مبلغ الشيك],غير_ذلك[رمز G/L],ملخص_المصاريف_الشهرية[[#This Row],[رمز G/L]],غير_ذلك[تاريخ تقديم طلب الشيك],\">=\"&DATEVALUE(\"1 \"&ملخص_المصاريف_الشهرية[[#Headers],[أبريل]]&\" \"&_السنة),غير_ذلك[تاريخ تقديم طلب الشيك],\"<=\"&G$4)","v":{"v":0,"d":"ر.س.‏ 0.00"}},{"$f":"SUMIFS(المصاريف_المفصلة[مبلغ الشيك],المصاريف_المفصلة[رمز G/L],ملخص_المصاريف_الشهرية[[#This Row],[رمز G/L]],المصاريف_المفصلة[تاريخ الفاتورة],\">=\"&H$3,المصاريف_المفصلة[تاريخ الفاتورة],\"<=\"&H$4)+SUMIFS(غير_ذلك[مبلغ الشيك],غير_ذلك[رمز G/L],ملخص_المصاريف_الشهرية[[#This Row],[رمز G/L]],غير_ذلك[تاريخ تقديم طلب الشيك],\">=\"&DATEVALUE(\"1 \"&ملخص_المصاريف_الشهرية[[#Headers],[مايو]]&\" \"&_السنة),غير_ذلك[تاريخ تقديم طلب الشيك],\"<=\"&H$4)","v":{"v":0,"d":"ر.س.‏ 0.00"}},{"$f":"SUMIFS(المصاريف_المفصلة[مبلغ الشيك],المصاريف_المفصلة[رمز G/L],ملخص_المصاريف_الشهرية[[#This Row],[رمز G/L]],المصاريف_المفصلة[تاريخ الفاتورة],\">=\"&I$3,المصاريف_المفصلة[تاريخ الفاتورة],\"<=\"&I$4)+SUMIFS(غير_ذلك[مبلغ الشيك],غير_ذلك[رمز G/L],ملخص_المصاريف_الشهرية[[#This Row],[رمز G/L]],غير_ذلك[تاريخ تقديم طلب الشيك],\">=\"&DATEVALUE(\"1 \"&ملخص_المصاريف_الشهرية[[#Headers],[يونيو]]&\" \"&_السنة),غير_ذلك[تاريخ تقديم طلب الشيك],\"<=\"&I$4)","v":{"v":0,"d":"ر.س.‏ 0.00"}},{"$f":"SUMIFS(المصاريف_المفصلة[مبلغ الشيك],المصاريف_المفصلة[رمز G/L],ملخص_المصاريف_الشهرية[[#This Row],[رمز G/L]],المصاريف_المفصلة[تاريخ الفاتورة],\">=\"&J$3,المصاريف_المفصلة[تاريخ الفاتورة],\"<=\"&J$4)+SUMIFS(غير_ذلك[مبلغ الشيك],غير_ذلك[رمز G/L],ملخص_المصاريف_الشهرية[[#This Row],[رمز G/L]],غير_ذلك[تاريخ تقديم طلب الشيك],\">=\"&DATEVALUE(\"1 \"&ملخص_المصاريف_الشهرية[[#Headers],[يوليو]]&\" \"&_السنة),غير_ذلك[تاريخ تقديم طلب الشيك],\"<=\"&J$4)","v":{"v":0,"d":"ر.س.‏ 0.00"}},{"$f":"SUMIFS(المصاريف_المفصلة[مبلغ الشيك],المصاريف_المفصلة[رمز G/L],ملخص_المصاريف_الشهرية[[#This Row],[رمز G/L]],المصاريف_المفصلة[تاريخ الفاتورة],\">=\"&K$3,المصاريف_المفصلة[تاريخ الفاتورة],\"<=\"&K$4)+SUMIFS(غير_ذلك[مبلغ الشيك],غير_ذلك[رمز G/L],ملخص_المصاريف_الشهرية[[#This Row],[رمز G/L]],غير_ذلك[تاريخ تقديم طلب الشيك],\">=\"&DATEVALUE(\"1 \"&ملخص_المصاريف_الشهرية[[#Headers],[أغسطس]]&\" \"&_السنة),غير_ذلك[تاريخ تقديم طلب الشيك],\"<=\"&K$4)","v":{"v":0,"d":"ر.س.‏ 0.00"}},{"$f":"SUMIFS(المصاريف_المفصلة[مبلغ الشيك],المصاريف_المفصلة[رمز G/L],ملخص_المصاريف_الشهرية[[#This Row],[رمز G/L]],المصاريف_المفصلة[تاريخ الفاتورة],\">=\"&L$3,المصاريف_المفصلة[تاريخ الفاتورة],\"<=\"&L$4)+SUMIFS(غير_ذلك[مبلغ الشيك],غير_ذلك[رمز G/L],ملخص_المصاريف_الشهرية[[#This Row],[رمز G/L]],غير_ذلك[تاريخ تقديم طلب الشيك],\">=\"&DATEVALUE(\"1 \"&ملخص_المصاريف_الشهرية[[#Headers],[سبتمبر]]&\" \"&_السنة),غير_ذلك[تاريخ تقديم طلب الشيك],\"<=\"&L$4)","v":{"v":0,"d":"ر.س.‏ 0.00"}},{"$f":"SUMIFS(المصاريف_المفصلة[مبلغ الشيك],المصاريف_المفصلة[رمز G/L],ملخص_المصاريف_الشهرية[[#This Row],[رمز G/L]],المصاريف_المفصلة[تاريخ الفاتورة],\">=\"&M$3,المصاريف_المفصلة[تاريخ الفاتورة],\"<=\"&M$4)+SUMIFS(غير_ذلك[مبلغ الشيك],غير_ذلك[رمز G/L],ملخص_المصاريف_الشهرية[[#This Row],[رمز G/L]],غير_ذلك[تاريخ تقديم طلب الشيك],\">=\"&DATEVALUE(\"1 \"&ملخص_المصاريف_الشهرية[[#Headers],[أكتوبر]]&\" \"&_السنة),غير_ذلك[تاريخ تقديم طلب الشيك],\"<=\"&M$4)","v":{"v":0,"d":"ر.س.‏ 0.00"}},{"$f":"SUMIFS(المصاريف_المفصلة[مبلغ الشيك],المصاريف_المفصلة[رمز G/L],ملخص_المصاريف_الشهرية[[#This Row],[رمز G/L]],المصاريف_المفصلة[تاريخ الفاتورة],\">=\"&N$3,المصاريف_المفصلة[تاريخ الفاتورة],\"<=\"&N$4)+SUMIFS(غير_ذلك[مبلغ الشيك],غير_ذلك[رمز G/L],ملخص_المصاريف_الشهرية[[#This Row],[رمز G/L]],غير_ذلك[تاريخ تقديم طلب الشيك],\">=\"&DATEVALUE(\"1 \"&ملخص_المصاريف_الشهرية[[#Headers],[نوفمبر]]&\" \"&_السنة),غير_ذلك[تاريخ تقديم طلب الشيك],\"<=\"&N$4)","v":{"v":0,"d":"ر.س.‏ 0.00"}},{"$f":"SUMIFS(المصاريف_المفصلة[مبلغ الشيك],المصاريف_المفصلة[رمز G/L],ملخص_المصاريف_الشهرية[[#This Row],[رمز G/L]],المصاريف_المفصلة[تاريخ الفاتورة],\">=\"&O$3,المصاريف_المفصلة[تاريخ الفاتورة],\"<=\"&O$4)+SUMIFS(غير_ذلك[مبلغ الشيك],غير_ذلك[رمز G/L],ملخص_المصاريف_الشهرية[[#This Row],[رمز G/L]],غير_ذلك[تاريخ تقديم طلب الشيك],\">=\"&DATEVALUE(\"1 \"&ملخص_المصاريف_الشهرية[[#Headers],[ديسمبر]]&\" \"&_السنة),غير_ذلك[تاريخ تقديم طلب الشيك],\"<=\"&O$4)","v":{"v":0,"d":"ر.س.‏ 0.00"}},{"$f":"SUM(ملخص_المصاريف_الشهرية[[#This Row],[يناير]:[ديسمبر]])","v":{"v":0,"d":"ر.س.‏ 0.00"}}]
[null,10000,"التسويق",{"$f":"SUMIFS(المصاريف_المفصلة[مبلغ الشيك],المصاريف_المفصلة[رمز G/L],ملخص_المصاريف_الشهرية[[#This Row],[رمز G/L]],المصاريف_المفصلة[تاريخ الفاتورة],\">=\"&D$3,المصاريف_المفصلة[تاريخ الفاتورة],\"<=\"&D$4)+SUMIFS(غير_ذلك[مبلغ الشيك],غير_ذلك[رمز G/L],ملخص_المصاريف_الشهرية[[#This Row],[رمز G/L]],غير_ذلك[تاريخ تقديم طلب الشيك],\">=\"&DATEVALUE(\"1 \"&ملخص_المصاريف_الشهرية[[#Headers],[يناير]]&\" \"&_السنة),غير_ذلك[تاريخ تقديم طلب الشيك],\"<=\"&D$4)","v":{"v":0,"d":"ر.س.‏ 0.00"}},{"$f":"SUMIFS(المصاريف_المفصلة[مبلغ الشيك],المصاريف_المفصلة[رمز G/L],ملخص_المصاريف_الشهرية[[#This Row],[رمز G/L]],المصاريف_المفصلة[تاريخ الفاتورة],\">=\"&E$3,المصاريف_المفصلة[تاريخ الفاتورة],\"<=\"&E$4)+SUMIFS(غير_ذلك[مبلغ الشيك],غير_ذلك[رمز G/L],ملخص_المصاريف_الشهرية[[#This Row],[رمز G/L]],غير_ذلك[تاريخ تقديم طلب الشيك],\">=\"&DATEVALUE(\"1 \"&ملخص_المصاريف_الشهرية[[#Headers],[فبراير]]&\" \"&_السنة),غير_ذلك[تاريخ تقديم طلب الشيك],\"<=\"&E$4)","v":{"v":0,"d":"ر.س.‏ 0.00"}},{"$f":"SUMIFS(المصاريف_المفصلة[مبلغ الشيك],المصاريف_المفصلة[رمز G/L],ملخص_المصاريف_الشهرية[[#This Row],[رمز G/L]],المصاريف_المفصلة[تاريخ الفاتورة],\">=\"&F$3,المصاريف_المفصلة[تاريخ الفاتورة],\"<=\"&F$4)+SUMIFS(غير_ذلك[مبلغ الشيك],غير_ذلك[رمز G/L],ملخص_المصاريف_الشهرية[[#This Row],[رمز G/L]],غير_ذلك[تاريخ تقديم طلب الشيك],\">=\"&DATEVALUE(\"1 \"&ملخص_المصاريف_الشهرية[[#Headers],[مارس]]&\" \"&_السنة),غير_ذلك[تاريخ تقديم طلب الشيك],\"<=\"&F$4)","v":{"v":0,"d":"ر.س.‏ 0.00"}},{"$f":"SUMIFS(المصاريف_المفصلة[مبلغ الشيك],المصاريف_المفصلة[رمز G/L],ملخص_المصاريف_الشهرية[[#This Row],[رمز G/L]],المصاريف_المفصلة[تاريخ الفاتورة],\">=\"&G$3,المصاريف_المفصلة[تاريخ الفاتورة],\"<=\"&G$4)+SUMIFS(غير_ذلك[مبلغ الشيك],غير_ذلك[رمز G/L],ملخص_المصاريف_الشهرية[[#This Row],[رمز G/L]],غير_ذلك[تاريخ تقديم طلب الشيك],\">=\"&DATEVALUE(\"1 \"&ملخص_المصاريف_الشهرية[[#Headers],[أبريل]]&\" \"&_السنة),غير_ذلك[تاريخ تقديم طلب الشيك],\"<=\"&G$4)","v":{"v":0,"d":"ر.س.‏ 0.00"}},{"$f":"SUMIFS(المصاريف_المفصلة[مبلغ الشيك],المصاريف_المفصلة[رمز G/L],ملخص_المصاريف_الشهرية[[#This Row],[رمز G/L]],المصاريف_المفصلة[تاريخ الفاتورة],\">=\"&H$3,المصاريف_المفصلة[تاريخ الفاتورة],\"<=\"&H$4)+SUMIFS(غير_ذلك[مبلغ الشيك],غير_ذلك[رمز G/L],ملخص_المصاريف_الشهرية[[#This Row],[رمز G/L]],غير_ذلك[تاريخ تقديم طلب الشيك],\">=\"&DATEVALUE(\"1 \"&ملخص_المصاريف_الشهرية[[#Headers],[مايو]]&\" \"&_السنة),غير_ذلك[تاريخ تقديم طلب الشيك],\"<=\"&H$4)","v":{"v":0,"d":"ر.س.‏ 0.00"}},{"$f":"SUMIFS(المصاريف_المفصلة[مبلغ الشيك],المصاريف_المفصلة[رمز G/L],ملخص_المصاريف_الشهرية[[#This Row],[رمز G/L]],المصاريف_المفصلة[تاريخ الفاتورة],\">=\"&I$3,المصاريف_المفصلة[تاريخ الفاتورة],\"<=\"&I$4)+SUMIFS(غير_ذلك[مبلغ الشيك],غير_ذلك[رمز G/L],ملخص_المصاريف_الشهرية[[#This Row],[رمز G/L]],غير_ذلك[تاريخ تقديم طلب الشيك],\">=\"&DATEVALUE(\"1 \"&ملخص_المصاريف_الشهرية[[#Headers],[يونيو]]&\" \"&_السنة),غير_ذلك[تاريخ تقديم طلب الشيك],\"<=\"&I$4)","v":{"v":0,"d":"ر.س.‏ 0.00"}},{"$f":"SUMIFS(المصاريف_المفصلة[مبلغ الشيك],المصاريف_المفصلة[رمز G/L],ملخص_المصاريف_الشهرية[[#This Row],[رمز G/L]],المصاريف_المفصلة[تاريخ الفاتورة],\">=\"&J$3,المصاريف_المفصلة[تاريخ الفاتورة],\"<=\"&J$4)+SUMIFS(غير_ذلك[مبلغ الشيك],غير_ذلك[رمز G/L],ملخص_المصاريف_الشهرية[[#This Row],[رمز G/L]],غير_ذلك[تاريخ تقديم طلب الشيك],\">=\"&DATEVALUE(\"1 \"&ملخص_المصاريف_الشهرية[[#Headers],[يوليو]]&\" \"&_السنة),غير_ذلك[تاريخ تقديم طلب الشيك],\"<=\"&J$4)","v":{"v":0,"d":"ر.س.‏ 0.00"}},{"$f":"SUMIFS(المصاريف_المفصلة[مبلغ الشيك],المصاريف_المفصلة[رمز G/L],ملخص_المصاريف_الشهرية[[#This Row],[رمز G/L]],المصاريف_المفصلة[تاريخ الفاتورة],\">=\"&K$3,المصاريف_المفصلة[تاريخ الفاتورة],\"<=\"&K$4)+SUMIFS(غير_ذلك[مبلغ الشيك],غير_ذلك[رمز G/L],ملخص_المصاريف_الشهرية[[#This Row],[رمز G/L]],غير_ذلك[تاريخ تقديم طلب الشيك],\">=\"&DATEVALUE(\"1 \"&ملخص_المصاريف_الشهرية[[#Headers],[أغسطس]]&\" \"&_السنة),غير_ذلك[تاريخ تقديم طلب الشيك],\"<=\"&K$4)","v":{"v":0,"d":"ر.س.‏ 0.00"}},{"$f":"SUMIFS(المصاريف_المفصلة[مبلغ الشيك],المصاريف_المفصلة[رمز G/L],ملخص_المصاريف_الشهرية[[#This Row],[رمز G/L]],المصاريف_المفصلة[تاريخ الفاتورة],\">=\"&L$3,المصاريف_المفصلة[تاريخ الفاتورة],\"<=\"&L$4)+SUMIFS(غير_ذلك[مبلغ الشيك],غير_ذلك[رمز G/L],ملخص_المصاريف_الشهرية[[#This Row],[رمز G/L]],غير_ذلك[تاريخ تقديم طلب الشيك],\">=\"&DATEVALUE(\"1 \"&ملخص_المصاريف_الشهرية[[#Headers],[سبتمبر]]&\" \"&_السنة),غير_ذلك[تاريخ تقديم طلب الشيك],\"<=\"&L$4)","v":{"v":0,"d":"ر.س.‏ 0.00"}},{"$f":"SUMIFS(المصاريف_المفصلة[مبلغ الشيك],المصاريف_المفصلة[رمز G/L],ملخص_المصاريف_الشهرية[[#This Row],[رمز G/L]],المصاريف_المفصلة[تاريخ الفاتورة],\">=\"&M$3,المصاريف_المفصلة[تاريخ الفاتورة],\"<=\"&M$4)+SUMIFS(غير_ذلك[مبلغ الشيك],غير_ذلك[رمز G/L],ملخص_المصاريف_الشهرية[[#This Row],[رمز G/L]],غير_ذلك[تاريخ تقديم طلب الشيك],\">=\"&DATEVALUE(\"1 \"&ملخص_المصاريف_الشهرية[[#Headers],[أكتوبر]]&\" \"&_السنة),غير_ذلك[تاريخ تقديم طلب الشيك],\"<=\"&M$4)","v":{"v":0,"d":"ر.س.‏ 0.00"}},{"$f":"SUMIFS(المصاريف_المفصلة[مبلغ الشيك],المصاريف_المفصلة[رمز G/L],ملخص_المصاريف_الشهرية[[#This Row],[رمز G/L]],المصاريف_المفصلة[تاريخ الفاتورة],\">=\"&N$3,المصاريف_المفصلة[تاريخ الفاتورة],\"<=\"&N$4)+SUMIFS(غير_ذلك[مبلغ الشيك],غير_ذلك[رمز G/L],ملخص_المصاريف_الشهرية[[#This Row],[رمز G/L]],غير_ذلك[تاريخ تقديم طلب الشيك],\">=\"&DATEVALUE(\"1 \"&ملخص_المصاريف_الشهرية[[#Headers],[نوفمبر]]&\" \"&_السنة),غير_ذلك[تاريخ تقديم طلب الشيك],\"<=\"&N$4)","v":{"v":0,"d":"ر.س.‏ 0.00"}},{"$f":"SUMIFS(المصاريف_المفصلة[مبلغ الشيك],المصاريف_المفصلة[رمز G/L],ملخص_المصاريف_الشهرية[[#This Row],[رمز G/L]],المصاريف_المفصلة[تاريخ الفاتورة],\">=\"&O$3,المصاريف_المفصلة[تاريخ الفاتورة],\"<=\"&O$4)+SUMIFS(غير_ذلك[مبلغ الشيك],غير_ذلك[رمز G/L],ملخص_المصاريف_الشهرية[[#This Row],[رمز G/L]],غير_ذلك[تاريخ تقديم طلب الشيك],\">=\"&DATEVALUE(\"1 \"&ملخص_المصاريف_الشهرية[[#Headers],[ديسمبر]]&\" \"&_السنة),غير_ذلك[تاريخ تقديم طلب الشيك],\"<=\"&O$4)","v":{"v":0,"d":"ر.س.‏ 0.00"}},{"$f":"SUM(ملخص_المصاريف_الشهرية[[#This Row],[يناير]:[ديسمبر]])","v":{"v":0,"d":"ر.س.‏ 0.00"}}]
[null,11000,"أعمال خيرية",{"$f":"SUMIFS(المصاريف_المفصلة[مبلغ الشيك],المصاريف_المفصلة[رمز G/L],ملخص_المصاريف_الشهرية[[#This Row],[رمز G/L]],المصاريف_المفصلة[تاريخ الفاتورة],\">=\"&D$3,المصاريف_المفصلة[تاريخ الفاتورة],\"<=\"&D$4)+SUMIFS(غير_ذلك[مبلغ الشيك],غير_ذلك[رمز G/L],ملخص_المصاريف_الشهرية[[#This Row],[رمز G/L]],غير_ذلك[تاريخ تقديم طلب الشيك],\">=\"&DATEVALUE(\"1 \"&ملخص_المصاريف_الشهرية[[#Headers],[يناير]]&\" \"&_السنة),غير_ذلك[تاريخ تقديم طلب الشيك],\"<=\"&D$4)","v":{"v":0,"d":"ر.س.‏ 0.00"}},{"$f":"SUMIFS(المصاريف_المفصلة[مبلغ الشيك],المصاريف_المفصلة[رمز G/L],ملخص_المصاريف_الشهرية[[#This Row],[رمز G/L]],المصاريف_المفصلة[تاريخ الفاتورة],\">=\"&E$3,المصاريف_المفصلة[تاريخ الفاتورة],\"<=\"&E$4)+SUMIFS(غير_ذلك[مبلغ الشيك],غير_ذلك[رمز G/L],ملخص_المصاريف_الشهرية[[#This Row],[رمز G/L]],غير_ذلك[تاريخ تقديم طلب الشيك],\">=\"&DATEVALUE(\"1 \"&ملخص_المصاريف_الشهرية[[#Headers],[فبراير]]&\" \"&_السنة),غير_ذلك[تاريخ تقديم طلب الشيك],\"<=\"&E$4)","v":{"v":0,"d":"ر.س.‏ 0.00"}},{"$f":"SUMIFS(المصاريف_المفصلة[مبلغ الشيك],المصاريف_المفصلة[رمز G/L],ملخص_المصاريف_الشهرية[[#This Row],[رمز G/L]],المصاريف_المفصلة[تاريخ الفاتورة],\">=\"&F$3,المصاريف_المفصلة[تاريخ الفاتورة],\"<=\"&F$4)+SUMIFS(غير_ذلك[مبلغ الشيك],غير_ذلك[رمز G/L],ملخص_المصاريف_الشهرية[[#This Row],[رمز G/L]],غير_ذلك[تاريخ تقديم طلب الشيك],\">=\"&DATEVALUE(\"1 \"&ملخص_المصاريف_الشهرية[[#Headers],[مارس]]&\" \"&_السنة),غير_ذلك[تاريخ تقديم طلب الشيك],\"<=\"&F$4)","v":{"v":0,"d":"ر.س.‏ 0.00"}},{"$f":"SUMIFS(المصاريف_المفصلة[مبلغ الشيك],المصاريف_المفصلة[رمز G/L],ملخص_المصاريف_الشهرية[[#This Row],[رمز G/L]],المصاريف_المفصلة[تاريخ الفاتورة],\">=\"&G$3,المصاريف_المفصلة[تاريخ الفاتورة],\"<=\"&G$4)+SUMIFS(غير_ذلك[مبلغ الشيك],غير_ذلك[رمز G/L],ملخص_المصاريف_الشهرية[[#This Row],[رمز G/L]],غير_ذلك[تاريخ تقديم طلب الشيك],\">=\"&DATEVALUE(\"1 \"&ملخص_المصاريف_الشهرية[[#Headers],[أبريل]]&\" \"&_السنة),غير_ذلك[تاريخ تقديم طلب الشيك],\"<=\"&G$4)","v":{"v":0,"d":"ر.س.‏ 0.00"}},{"$f":"SUMIFS(المصاريف_المفصلة[مبلغ الشيك],المصاريف_المفصلة[رمز G/L],ملخص_المصاريف_الشهرية[[#This Row],[رمز G/L]],المصاريف_المفصلة[تاريخ الفاتورة],\">=\"&H$3,المصاريف_المفصلة[تاريخ الفاتورة],\"<=\"&H$4)+SUMIFS(غير_ذلك[مبلغ الشيك],غير_ذلك[رمز G/L],ملخص_المصاريف_الشهرية[[#This Row],[رمز G/L]],غير_ذلك[تاريخ تقديم طلب الشيك],\">=\"&DATEVALUE(\"1 \"&ملخص_المصاريف_الشهرية[[#Headers],[مايو]]&\" \"&_السنة),غير_ذلك[تاريخ تقديم طلب الشيك],\"<=\"&H$4)","v":{"v":0,"d":"ر.س.‏ 0.00"}},{"$f":"SUMIFS(المصاريف_المفصلة[مبلغ الشيك],المصاريف_المفصلة[رمز G/L],ملخص_المصاريف_الشهرية[[#This Row],[رمز G/L]],المصاريف_المفصلة[تاريخ الفاتورة],\">=\"&I$3,المصاريف_المفصلة[تاريخ الفاتورة],\"<=\"&I$4)+SUMIFS(غير_ذلك[مبلغ الشيك],غير_ذلك[رمز G/L],ملخص_المصاريف_الشهرية[[#This Row],[رمز G/L]],غير_ذلك[تاريخ تقديم طلب الشيك],\">=\"&DATEVALUE(\"1 \"&ملخص_المصاريف_الشهرية[[#Headers],[يونيو]]&\" \"&_السنة),غير_ذلك[تاريخ تقديم طلب الشيك],\"<=\"&I$4)","v":{"v":0,"d":"ر.س.‏ 0.00"}},{"$f":"SUMIFS(المصاريف_المفصلة[مبلغ الشيك],المصاريف_المفصلة[رمز G/L],ملخص_المصاريف_الشهرية[[#This Row],[رمز G/L]],المصاريف_المفصلة[تاريخ الفاتورة],\">=\"&J$3,المصاريف_المفصلة[تاريخ الفاتورة],\"<=\"&J$4)+SUMIFS(غير_ذلك[مبلغ الشيك],غير_ذلك[رمز G/L],ملخص_المصاريف_الشهرية[[#This Row],[رمز G/L]],غير_ذلك[تاريخ تقديم طلب الشيك],\">=\"&DATEVALUE(\"1 \"&ملخص_المصاريف_الشهرية[[#Headers],[يوليو]]&\" \"&_السنة),غير_ذلك[تاريخ تقديم طلب الشيك],\"<=\"&J$4)","v":{"v":0,"d":"ر.س.‏ 0.00"}},{"$f":"SUMIFS(المصاريف_المفصلة[مبلغ الشيك],المصاريف_المفصلة[رمز G/L],ملخص_المصاريف_الشهرية[[#This Row],[رمز G/L]],المصاريف_المفصلة[تاريخ الفاتورة],\">=\"&K$3,المصاريف_المفصلة[تاريخ الفاتورة],\"<=\"&K$4)+SUMIFS(غير_ذلك[مبلغ الشيك],غير_ذلك[رمز G/L],ملخص_المصاريف_الشهرية[[#This Row],[رمز G/L]],غير_ذلك[تاريخ تقديم طلب الشيك],\">=\"&DATEVALUE(\"1 \"&ملخص_المصاريف_الشهرية[[#Headers],[أغسطس]]&\" \"&_السنة),غير_ذلك[تاريخ تقديم طلب الشيك],\"<=\"&K$4)","v":{"v":0,"d":"ر.س.‏ 0.00"}},{"$f":"SUMIFS(المصاريف_المفصلة[مبلغ الشيك],المصاريف_المفصلة[رمز G/L],ملخص_المصاريف_الشهرية[[#This Row],[رمز G/L]],المصاريف_المفصلة[تاريخ الفاتورة],\">=\"&L$3,المصاريف_المفصلة[تاريخ الفاتورة],\"<=\"&L$4)+SUMIFS(غير_ذلك[مبلغ الشيك],غير_ذلك[رمز G/L],ملخص_المصاريف_الشهرية[[#This Row],[رمز G/L]],غير_ذلك[تاريخ تقديم طلب الشيك],\">=\"&DATEVALUE(\"1 \"&ملخص_المصاريف_الشهرية[[#Headers],[سبتمبر]]&\" \"&_السنة),غير_ذلك[تاريخ تقديم طلب الشيك],\"<=\"&L$4)","v":{"v":0,"d":"ر.س.‏ 0.00"}},{"$f":"SUMIFS(المصاريف_المفصلة[مبلغ الشيك],المصاريف_المفصلة[رمز G/L],ملخص_المصاريف_الشهرية[[#This Row],[رمز G/L]],المصاريف_المفصلة[تاريخ الفاتورة],\">=\"&M$3,المصاريف_المفصلة[تاريخ الفاتورة],\"<=\"&M$4)+SUMIFS(غير_ذلك[مبلغ الشيك],غير_ذلك[رمز G/L],ملخص_المصاريف_الشهرية[[#This Row],[رمز G/L]],غير_ذلك[تاريخ تقديم طلب الشيك],\">=\"&DATEVALUE(\"1 \"&ملخص_المصاريف_الشهرية[[#Headers],[أكتوبر]]&\" \"&_السنة),غير_ذلك[تاريخ تقديم طلب الشيك],\"<=\"&M$4)","v":{"v":0,"d":"ر.س.‏ 0.00"}},{"$f":"SUMIFS(المصاريف_المفصلة[مبلغ الشيك],المصاريف_المفصلة[رمز G/L],ملخص_المصاريف_الشهرية[[#This Row],[رمز G/L]],المصاريف_المفصلة[تاريخ الفاتورة],\">=\"&N$3,المصاريف_المفصلة[تاريخ الفاتورة],\"<=\"&N$4)+SUMIFS(غير_ذلك[مبلغ الشيك],غير_ذلك[رمز G/L],ملخص_المصاريف_الشهرية[[#This Row],[رمز G/L]],غير_ذلك[تاريخ تقديم طلب الشيك],\">=\"&DATEVALUE(\"1 \"&ملخص_المصاريف_الشهرية[[#Headers],[نوفمبر]]&\" \"&_السنة),غير_ذلك[تاريخ تقديم طلب الشيك],\"<=\"&N$4)","v":{"v":0,"d":"ر.س.‏ 0.00"}},{"$f":"SUMIFS(المصاريف_المفصلة[مبلغ الشيك],المصاريف_المفصلة[رمز G/L],ملخص_المصاريف_الشهرية[[#This Row],[رمز G/L]],المصاريف_المفصلة[تاريخ الفاتورة],\">=\"&O$3,المصاريف_المفصلة[تاريخ الفاتورة],\"<=\"&O$4)+SUMIFS(غير_ذلك[مبلغ الشيك],غير_ذلك[رمز G/L],ملخص_المصاريف_الشهرية[[#This Row],[رمز G/L]],غير_ذلك[تاريخ تقديم طلب الشيك],\">=\"&DATEVALUE(\"1 \"&ملخص_المصاريف_الشهرية[[#Headers],[ديسمبر]]&\" \"&_السنة),غير_ذلك[تاريخ تقديم طلب الشيك],\"<=\"&O$4)","v":{"v":0,"d":"ر.س.‏ 0.00"}},{"$f":"SUM(ملخص_المصاريف_الشهرية[[#This Row],[يناير]:[ديسمبر]])","v":{"v":0,"d":"ر.س.‏ 0.00"}}]
[null,12000,"الجهات الراعية",{"$f":"SUMIFS(المصاريف_المفصلة[مبلغ الشيك],المصاريف_المفصلة[رمز G/L],ملخص_المصاريف_الشهرية[[#This Row],[رمز G/L]],المصاريف_المفصلة[تاريخ الفاتورة],\">=\"&D$3,المصاريف_المفصلة[تاريخ الفاتورة],\"<=\"&D$4)+SUMIFS(غير_ذلك[مبلغ الشيك],غير_ذلك[رمز G/L],ملخص_المصاريف_الشهرية[[#This Row],[رمز G/L]],غير_ذلك[تاريخ تقديم طلب الشيك],\">=\"&DATEVALUE(\"1 \"&ملخص_المصاريف_الشهرية[[#Headers],[يناير]]&\" \"&_السنة),غير_ذلك[تاريخ تقديم طلب الشيك],\"<=\"&D$4)","v":{"v":0,"d":"ر.س.‏ 0.00"}},{"$f":"SUMIFS(المصاريف_المفصلة[مبلغ الشيك],المصاريف_المفصلة[رمز G/L],ملخص_المصاريف_الشهرية[[#This Row],[رمز G/L]],المصاريف_المفصلة[تاريخ الفاتورة],\">=\"&E$3,المصاريف_المفصلة[تاريخ الفاتورة],\"<=\"&E$4)+SUMIFS(غير_ذلك[مبلغ الشيك],غير_ذلك[رمز G/L],ملخص_المصاريف_الشهرية[[#This Row],[رمز G/L]],غير_ذلك[تاريخ تقديم طلب الشيك],\">=\"&DATEVALUE(\"1 \"&ملخص_المصاريف_الشهرية[[#Headers],[فبراير]]&\" \"&_السنة),غير_ذلك[تاريخ تقديم طلب الشيك],\"<=\"&E$4)","v":{"v":0,"d":"ر.س.‏ 0.00"}},{"$f":"SUMIFS(المصاريف_المفصلة[مبلغ الشيك],المصاريف_المفصلة[رمز G/L],ملخص_المصاريف_الشهرية[[#This Row],[رمز G/L]],المصاريف_المفصلة[تاريخ الفاتورة],\">=\"&F$3,المصاريف_المفصلة[تاريخ الفاتورة],\"<=\"&F$4)+SUMIFS(غير_ذلك[مبلغ الشيك],غير_ذلك[رمز G/L],ملخص_المصاريف_الشهرية[[#This Row],[رمز G/L]],غير_ذلك[تاريخ تقديم طلب الشيك],\">=\"&DATEVALUE(\"1 \"&ملخص_المصاريف_الشهرية[[#Headers],[مارس]]&\" \"&_السنة),غير_ذلك[تاريخ تقديم طلب الشيك],\"<=\"&F$4)","v":{"v":0,"d":"ر.س.‏ 0.00"}},{"$f":"SUMIFS(المصاريف_المفصلة[مبلغ الشيك],المصاريف_المفصلة[رمز G/L],ملخص_المصاريف_الشهرية[[#This Row],[رمز G/L]],المصاريف_المفصلة[تاريخ الفاتورة],\">=\"&G$3,المصاريف_المفصلة[تاريخ الفاتورة],\"<=\"&G$4)+SUMIFS(غير_ذلك[مبلغ الشيك],غير_ذلك[رمز G/L],ملخص_المصاريف_الشهرية[[#This Row],[رمز G/L]],غير_ذلك[تاريخ تقديم طلب الشيك],\">=\"&DATEVALUE(\"1 \"&ملخص_المصاريف_الشهرية[[#Headers],[أبريل]]&\" \"&_السنة),غير_ذلك[تاريخ تقديم طلب الشيك],\"<=\"&G$4)","v":{"v":0,"d":"ر.س.‏ 0.00"}},{"$f":"SUMIFS(المصاريف_المفصلة[مبلغ الشيك],المصاريف_المفصلة[رمز G/L],ملخص_المصاريف_الشهرية[[#This Row],[رمز G/L]],المصاريف_المفصلة[تاريخ الفاتورة],\">=\"&H$3,المصاريف_المفصلة[تاريخ الفاتورة],\"<=\"&H$4)+SUMIFS(غير_ذلك[مبلغ الشيك],غير_ذلك[رمز G/L],ملخص_المصاريف_الشهرية[[#This Row],[رمز G/L]],غير_ذلك[تاريخ تقديم طلب الشيك],\">=\"&DATEVALUE(\"1 \"&ملخص_المصاريف_الشهرية[[#Headers],[مايو]]&\" \"&_السنة),غير_ذلك[تاريخ تقديم طلب الشيك],\"<=\"&H$4)","v":{"v":0,"d":"ر.س.‏ 0.00"}},{"$f":"SUMIFS(المصاريف_المفصلة[مبلغ الشيك],المصاريف_المفصلة[رمز G/L],ملخص_المصاريف_الشهرية[[#This Row],[رمز G/L]],المصاريف_المفصلة[تاريخ الفاتورة],\">=\"&I$3,المصاريف_المفصلة[تاريخ الفاتورة],\"<=\"&I$4)+SUMIFS(غير_ذلك[مبلغ الشيك],غير_ذلك[رمز G/L],ملخص_المصاريف_الشهرية[[#This Row],[رمز G/L]],غير_ذلك[تاريخ تقديم طلب الشيك],\">=\"&DATEVALUE(\"1 \"&ملخص_المصاريف_الشهرية[[#Headers],[يونيو]]&\" \"&_السنة),غير_ذلك[تاريخ تقديم طلب الشيك],\"<=\"&I$4)","v":{"v":0,"d":"ر.س.‏ 0.00"}},{"$f":"SUMIFS(المصاريف_المفصلة[مبلغ الشيك],المصاريف_المفصلة[رمز G/L],ملخص_المصاريف_الشهرية[[#This Row],[رمز G/L]],المصاريف_المفصلة[تاريخ الفاتورة],\">=\"&J$3,المصاريف_المفصلة[تاريخ الفاتورة],\"<=\"&J$4)+SUMIFS(غير_ذلك[مبلغ الشيك],غير_ذلك[رمز G/L],ملخص_المصاريف_الشهرية[[#This Row],[رمز G/L]],غير_ذلك[تاريخ تقديم طلب الشيك],\">=\"&DATEVALUE(\"1 \"&ملخص_المصاريف_الشهرية[[#Headers],[يوليو]]&\" \"&_السنة),غير_ذلك[تاريخ تقديم طلب الشيك],\"<=\"&J$4)","v":{"v":0,"d":"ر.س.‏ 0.00"}},{"$f":"SUMIFS(المصاريف_المفصلة[مبلغ الشيك],المصاريف_المفصلة[رمز G/L],ملخص_المصاريف_الشهرية[[#This Row],[رمز G/L]],المصاريف_المفصلة[تاريخ الفاتورة],\">=\"&K$3,المصاريف_المفصلة[تاريخ الفاتورة],\"<=\"&K$4)+SUMIFS(غير_ذلك[مبلغ الشيك],غير_ذلك[رمز G/L],ملخص_المصاريف_الشهرية[[#This Row],[رمز G/L]],غير_ذلك[تاريخ تقديم طلب الشيك],\">=\"&DATEVALUE(\"1 \"&ملخص_المصاريف_الشهرية[[#Headers],[أغسطس]]&\" \"&_السنة),غير_ذلك[تاريخ تقديم طلب الشيك],\"<=\"&K$4)","v":{"v":0,"d":"ر.س.‏ 0.00"}},{"$f":"SUMIFS(المصاريف_المفصلة[مبلغ الشيك],المصاريف_المفصلة[رمز G/L],ملخص_المصاريف_الشهرية[[#This Row],[رمز G/L]],المصاريف_المفصلة[تاريخ الفاتورة],\">=\"&L$3,المصاريف_المفصلة[تاريخ الفاتورة],\"<=\"&L$4)+SUMIFS(غير_ذلك[مبلغ الشيك],غير_ذلك[رمز G/L],ملخص_المصاريف_الشهرية[[#This Row],[رمز G/L]],غير_ذلك[تاريخ تقديم طلب الشيك],\">=\"&DATEVALUE(\"1 \"&ملخص_المصاريف_الشهرية[[#Headers],[سبتمبر]]&\" \"&_السنة),غير_ذلك[تاريخ تقديم طلب الشيك],\"<=\"&L$4)","v":{"v":0,"d":"ر.س.‏ 0.00"}},{"$f":"SUMIFS(المصاريف_المفصلة[مبلغ الشيك],المصاريف_المفصلة[رمز G/L],ملخص_المصاريف_الشهرية[[#This Row],[رمز G/L]],المصاريف_المفصلة[تاريخ الفاتورة],\">=\"&M$3,المصاريف_المفصلة[تاريخ الفاتورة],\"<=\"&M$4)+SUMIFS(غير_ذلك[مبلغ الشيك],غير_ذلك[رمز G/L],ملخص_المصاريف_الشهرية[[#This Row],[رمز G/L]],غير_ذلك[تاريخ تقديم طلب الشيك],\">=\"&DATEVALUE(\"1 \"&ملخص_المصاريف_الشهرية[[#Headers],[أكتوبر]]&\" \"&_السنة),غير_ذلك[تاريخ تقديم طلب الشيك],\"<=\"&M$4)","v":{"v":0,"d":"ر.س.‏ 0.00"}},{"$f":"SUMIFS(المصاريف_المفصلة[مبلغ الشيك],المصاريف_المفصلة[رمز G/L],ملخص_المصاريف_الشهرية[[#This Row],[رمز G/L]],المصاريف_المفصلة[تاريخ الفاتورة],\">=\"&N$3,المصاريف_المفصلة[تاريخ الفاتورة],\"<=\"&N$4)+SUMIFS(غير_ذلك[مبلغ الشيك],غير_ذلك[رمز G/L],ملخص_المصاريف_الشهرية[[#This Row],[رمز G/L]],غير_ذلك[تاريخ تقديم طلب الشيك],\">=\"&DATEVALUE(\"1 \"&ملخص_المصاريف_الشهرية[[#Headers],[نوفمبر]]&\" \"&_السنة),غير_ذلك[تاريخ تقديم طلب الشيك],\"<=\"&N$4)","v":{"v":0,"d":"ر.س.‏ 0.00"}},{"$f":"SUMIFS(المصاريف_المفصلة[مبلغ الشيك],المصاريف_المفصلة[رمز G/L],ملخص_المصاريف_الشهرية[[#This Row],[رمز G/L]],المصاريف_المفصلة[تاريخ الفاتورة],\">=\"&O$3,المصاريف_المفصلة[تاريخ الفاتورة],\"<=\"&O$4)+SUMIFS(غير_ذلك[مبلغ الشيك],غير_ذلك[رمز G/L],ملخص_المصاريف_الشهرية[[#This Row],[رمز G/L]],غير_ذلك[تاريخ تقديم طلب الشيك],\">=\"&DATEVALUE(\"1 \"&ملخص_المصاريف_الشهرية[[#Headers],[ديسمبر]]&\" \"&_السنة),غير_ذلك[تاريخ تقديم طلب الشيك],\"<=\"&O$4)","v":{"v":0,"d":"ر.س.‏ 0.00"}},{"$f":"SUM(ملخص_المصاريف_الشهرية[[#This Row],[يناير]:[ديسمبر]])","v":{"v":0,"d":"ر.س.‏ 0.00"}}]
[null,"الإجمالي",null,{"$f":"SUBTOTAL(109,ملخص_المصاريف_الشهرية[يناير])","v":{"v":0,"d":"ر.س.‏ 0.00"}},{"$f":"SUBTOTAL(109,ملخص_المصاريف_الشهرية[فبراير])","v":{"v":0,"d":"ر.س.‏ 0.00"}},{"$f":"SUBTOTAL(109,ملخص_المصاريف_الشهرية[مارس])","v":{"v":0,"d":"ر.س.‏ 0.00"}},{"$f":"SUBTOTAL(109,ملخص_المصاريف_الشهرية[أبريل])","v":{"v":0,"d":"ر.س.‏ 0.00"}},{"$f":"SUBTOTAL(109,ملخص_المصاريف_الشهرية[مايو])","v":{"v":0,"d":"ر.س.‏ 0.00"}},{"$f":"SUBTOTAL(109,ملخص_المصاريف_الشهرية[يونيو])","v":{"v":0,"d":"ر.س.‏ 0.00"}},{"$f":"SUBTOTAL(109,ملخص_المصاريف_الشهرية[يوليو])","v":{"v":0,"d":"ر.س.‏ 0.00"}},{"$f":"SUBTOTAL(109,ملخص_المصاريف_الشهرية[أغسطس])","v":{"v":0,"d":"ر.س.‏ 0.00"}},{"$f":"SUBTOTAL(109,ملخص_المصاريف_الشهرية[سبتمبر])","v":{"v":0,"d":"ر.س.‏ 0.00"}},{"$f":"SUBTOTAL(109,ملخص_المصاريف_الشهرية[أكتوبر])","v":{"v":0,"d":"ر.س.‏ 0.00"}},{"$f":"SUBTOTAL(109,ملخص_المصاريف_الشهرية[نوفمبر])","v":{"v":0,"d":"ر.س.‏ 0.00"}},{"$f":"SUBTOTAL(109,ملخص_المصاريف_الشهرية[ديسمبر])","v":{"v":0,"d":"ر.س.‏ 0.00"}},{"$f":"SUBTOTAL(109,ملخص_المصاريف_الشهرية[الإجمالي])","v":{"v":0,"d":"ر.س.‏ 0.00"}}]

{"sheet":"المصاريف المفصلة","index":2,"n_rows":6,"n_cols":10,"rows_kept":6,"merged":[[1,1,1,9],[2,1,2,5],[2,6,2,9]]}
[null,"ملخص المصاريف الشهرية","الأعمال الخيرية والجهات الراعية"]
[null,"المصاريف المفصلة"]
[null,"يوجد في هذه الخلية مقسم طريقة العرض لتصفية البيانات حسب \"مطلوب بواسطة\"، بينما يوجد مقسم طريقة العرض لتصفية البيانات حسب \"المستفيد\" في الخلية الموجودة على اليسار.",{"$nulls":4},"مقسم طريقة العرض لتصفية البيانات حسب \"المستفيد\" في هذه الخلية."]
[null,"رمز G/L","تاريخ الفاتورة","رقم الفاتورة","مطلوب بواسطة","مبلغ الشيك","المستفيد","استخدام الشيك","أسلوب التوزيع","تاريخ الملف"]
[null,1000,"التاريخ",100,"فاطمة علي",{"v":750.75,"d":"ر.س.‏ 750.75"},"Consolidated Messenger ","مرسل بريد","البريد","التاريخ"]
[null,7000,"التاريخ",101,"سالم الحجار",{"v":2500,"d":"ر.س.‏ 2,500.00"},"أ. Datum Corporation ","جهازا كمبيوتر سطح المكتب","الائتمان","التاريخ"]

{"sheet":"الأعمال الخيرية والجهات الراعية","index":3,"n_rows":6,"n_cols":12,"rows_kept":6,"merged":[[1,1,1,11],[2,1,2,5],[2,6,2,11]]}
[null,"المصاريف المفصلة"]
[null,"الأعمال الخيرية والجهات الراعية"]
[null,"يوجد في هذه الخلية مقسم طريقة العرض لتصفية البيانات حسب \"مطلوب بواسطة\"، بينما يوجد مقسم طريقة العرض لتصفية البيانات حسب \"المستفيد\" في الخلية الموجودة على اليسار.",{"$nulls":4},"مقسم طريقة العرض لتصفية البيانات حسب \"المستفيد\" في هذه الخلية."]
[null,"رمز G/L","تاريخ تقديم طلب الشيك","مطلوب بواسطة","مبلغ الشيك","مساهمة السنة الماضية","المستفيد","غرض الاستخدام","تم الاعتماد بواسطة","الفئة","أسلوب التوزيع","تاريخ الملف"]
[null,12000,"التاريخ","Susan W. Eaton",{"v":1000,"d":"ر.س.‏ 1,000.00"},{"v":12,"d":"ر.س.‏ 12.00"},"كلية الفنون الجميلة ","المنح الدراسية","فاضلة باز","الفنون","شيك","التاريخ"]
[null,11000,"التاريخ","Susan W. Eaton",{"v":2500,"d":"ر.س.‏ 2,500.00"},{"v":0,"d":"ر.س.‏ 0.00"},"Wingtip Toys ","المجتمع","Kathie Flood","المجتمع","شيك","التاريخ"]